Cogmind - Beta 10.1 @@@ ROGUE MODE // 2020.10.18 @ 19:51:06 Player: RIFEnergyWeapons Result: Escaped singularity! Performance ------------- Evolutions (9) 4500 Regions Visited (35) 7000 Robots Destroyed (542) 2710 Value Destroyed (29177) 29177 Prototype IDs (152) 3040 Alien Tech Used (15) 3000 Bonus (55774) 55774 TOTAL SCORE: 105201 Bonus ------- High Alert Combat Kills 5491 Follower Combat Kills 2061 Entered Garrisons 1400 Used RIF Installer 3500 Network Hubs Disabled 600 Aligned with FarCom 300 Built Enhanced Grunts 300 Found Hidden Lab 3000 Used Core Reset Matrix 3000 Destroyed MAIN.C Guards 500 Met MAIN.C 5000 Destroyed MAIN.C Shell 5000 Destroyed MAIN.C 10000 Met Architect 300 Destroyed A8 300 Destroyed A6 400 Destroyed A5 500 Destroyed Architect 15000 Win 3000 Friendly Fire -3878 Cogmind --------- Core Integrity 489/1600 Matter 213/300 Energy 599/600 System Corruption 3% Temperature Cool (0) Movement Core (150) Ox2 Location Near Former Tau Ceti IV Parts ------- > --- POWER (2) -------- (None) > --- PROPULSION (4) --- (None) > --- UTILITY (15) ----- High-capacity Storage Unit > --- WEAPON (4) ------- (None) > --- INVENTORY (12) --- Armored Heavy Treads Experimental Biometal Heavy Treads Experimental Energy Well (1000) Quantum Capacitor Phase Armor Matter Drive Sigix Quantum Sheargun Peak State ------------ > --- POWER ------------ Zero-point Reactor Zero-point Reactor > --- PROPULSION ------- High-density Centrium Heavy Treads High-density Centrium Heavy Treads > --- UTILITY ---------- High-capacity Storage Unit High-capacity Storage Unit High-capacity Storage Unit High-capacity Storage Unit High-capacity Storage Unit Experimental Energy Well Experimental Terrain Scan Processor Experimental Target Analyzer Advanced Armor Integrity Analyzer Improved Weapon Cycler Centrium Heavy Armor Plating AEGIS Remote Shield Matter Drive > --- WEAPON ----------- High-powered Disruptor Cannon 8R-AWN's Boregun Guided Remote Datajack > --- INVENTORY -------- Experimental Coolant Injector Advanced Energy Well Experimental Matter Compressor Experimental Terrain Scanner Advanced Salvage Targeting Computer Improved Weapon Cycler Advanced Transmission Jammer Experimental Weapon Shielding Experimental Powered Armor Experimental Powered Armor Phase Armor Beam Splitter EM Dispersion Field Phase Redirector Relay Coupler [NC] Long-range Tractor Beam Advanced Recalibrator Transdimensional Reconstructor High-powered Transdimensional Reconstructor Core Regenerator Integrity Redistributor Integrity Redistributor Core Reset Matrix Subatomic Replicator Hypervelocity EM Gauss Rifle Sigix Quantum Sheargun Sigix Quantum Sheargun Sigix Quantum Sheargun Sigix Quantum Sheargun Sigix Quantum Sheargun HERF Cannon Cooled Proton Cannon Compact HERF Cannon Cooled Nova Cannon Improved Heavy Machine Gun Heavy Proton Missile Launcher Advanced Micro-nuke Launcher Sigix Terminator Longsword +1 Deploy-a-Sentry [Rating: 245] Favorites ----------- Power Zero-point Reactor Engine Improved Ion Engine Power Core Cooled Fission Core Reactor Zero-point Reactor Propulsion Centrium Heavy Treads Treads Centrium Heavy Treads Wheel Centrium Wheel Utility High-capacity Storage Unit Device Improved Weapon Cycler Storage High-capacity Storage Unit Processor Experimental Terrain Scan Processor Hackware Experimental Hacking Suite Protection Hardened Light Armor Plating Artifact Matter Drive Weapon Longsword +1 Energy Gun Sigix Quantum Sheargun Energy Cannon EMDS Ballistic Gun Improved Assault Rifle Ballistic Cannon Flak Cannon Launcher Heavy Rocket Launcher Special Weapon Guided Remote Datajack Impact Weapon Power Maul Slashing Weapon Longsword +1 Special Melee Weapon Advanced Datajack Build | -11 -10 -10 -9 -9 -9 -8 -8 -8 -8 -8 -7 -7 -7 -7 -7 -7 -6 -6 -6 -6 -6 -6 -5 -5 -4 -4 -3 -3 -3 -2 -2 -2 -1 -1 -1 ------- Run | Scr Mat Min Mat Min Exi Min Mat Gar Mat Gar Fac Was Fac Gar Fac Gar Fac Ext Cet Arc Hub Gar Fac Gar Fac Gar Res Arm Lab Res Qua Sec Acc Com Ac0 Slots Evolved 18 | . . . 2 . . . 2 . . . 2 . . . . . 2 . . . . . 2 . 2 . 2 . . 2 . . 2 . . Power 1 | . . . . . . . . . . . . . . . . . . . . . . . . . . . . . . . . . 1 . . Propulsion 2 | . . . . . . . . . . . 1 . . . . . 1 . . . . . . . . . . . . . . . . . . Utility 13 | . . . 2 . . . 1 . . . 1 . . . . . 1 . . . . . 2 . 2 . 2 . . 1 . . 1 . . Weapon 2 | . . . . . . . 1 . . . . . . . . . . . . . . . . . . . . . . 1 . . . . . Parts Attached 754 | 8 16 15 40 6 21 6 3 3 5 7 32 7 2 4 7 15 10 15 14 12 33 7 12 11 48 3 7 42 4 14 58 81 14 97 75 Power 39 | 1 . 2 2 . 1 . . . . . 4 1 . . . . 1 2 1 2 2 . 1 1 1 . . 1 . . 7 3 2 4 . Engine 11 | 1 . 2 2 . . . . . . . 3 . . . . . 1 1 . . . . . . . . . . . . . . 1 . . Core 7 | . . . . . 1 . . . . . 1 . . . . . . 1 . . 1 . 1 . 1 . . 1 . . . . . . . Reactor 21 | . . . . . . . . . . . . 1 . . . . . . 1 2 1 . . 1 . . . . . . 7 3 1 4 . Propulsion 81 | 2 4 2 10 . 5 2 . . . 2 5 1 . 1 . 3 1 2 3 . 1 . 2 2 5 . . 7 . 3 6 3 1 7 1 Treads 61 | 2 1 . 10 . 3 . . . . 2 4 1 . 1 . 3 1 2 3 . 1 . 1 2 . . . 5 . 1 6 3 1 7 1 Leg . | . . . . . . . . . . . . . . . . . . . . . . . . . . . . . . . . . . . . Wheel 20 | . 3 2 . . 2 2 . . . . 1 . . . . . . . . . . . 1 . 5 . . 2 . 2 . . . . . Hover . | . . . . . . . . . . . . . . . . . . . . . . . . . . . . . . . . . . . . Flight . | . . . . . . . . . . . . . . . . . . . . . . . . . . . . . . . . . . . . Utility 398 | 3 3 . 11 . 7 2 2 1 1 3 9 3 1 3 6 5 4 8 4 9 18 4 8 4 31 3 7 26 2 9 34 50 10 54 53 Device 191 | 2 1 . 1 . 2 . 1 1 . . 7 2 . 3 6 1 . 2 1 3 6 3 3 4 16 . 2 12 1 7 15 30 7 28 24 Storage 84 | . 1 . 3 . 4 2 . . . 2 . . . . . 4 1 . 2 4 1 1 3 . 6 1 1 10 . . 7 12 2 11 6 Processor 19 | 1 . . . . . . . . . . . 1 . . . . . . . . 2 . 1 . 3 . 1 1 . . . . . 4 5 Hackware 16 | . . . . . . . 1 . . . . . . . . . 1 3 . . 3 . 1 . 1 . 3 1 . . 1 1 . . . Protection 87 | . 1 . 7 . 1 . . . 1 1 2 . 1 . . . 2 3 1 2 6 . . . 5 2 . 2 1 2 11 7 1 10 18 Artifact 1 | . . . . . . . . . . . . . . . . . . . . . . . . . . . . . . . . . . 1 . Weapon 236 | 2 9 11 17 6 8 2 1 2 4 2 14 2 1 . 1 7 4 3 6 1 12 3 1 4 11 . . 8 2 2 11 25 1 32 21 Energy Gun 41 | 1 5 3 1 . . . . . . . . . . . . . . . . . . . . . . . . 1 2 . . 3 . 18 7 Energy Cannon 61 | . 1 . 8 . . 1 . . . . 1 . . . . . . . 2 . . 1 1 . 7 . . 3 . 1 5 15 1 7 7 Ballistic Gun 68 | 1 . 5 6 3 6 . 1 2 1 2 5 . . . . 5 2 3 3 1 12 2 . 3 . . . . . . 1 . . 3 1 Ballistic Cannon 10 | . . . . . . . . . . . 1 1 . . . 1 . . . . . . . . . . . 1 . 1 1 . . 1 3 Launcher 20 | . . . . 2 1 1 . . 2 . 5 . 1 . . 1 . . 1 . . . . 1 . . . 1 . . . 2 . 1 1 Special Weapon 9 | . 3 2 . . . . . . . . . . . . . . 1 . . . . . . . 1 . . . . . 1 . . 1 . Impact Weapon 7 | . . 1 2 1 . . . . 1 . 1 1 . . . . . . . . . . . . . . . . . . . . . . . Slashing Weapon 17 | . . . . . 1 . . . . . 1 . . . . . 1 . . . . . . . 3 . . 2 . . 2 4 . 1 2 Piercing Weapon . | . . . . . . . . . . . . . . . . . . . . . . . . . . . . . . . . . . . . Special Melee Weapon 3 | . . . . . . . . . . . . . . . 1 . . . . . . . . . . . . . . . 1 1 . . . Unidentified Prototypes 65 | . . . 1 . 3 . . . . . . . . . . . . . 1 5 8 1 1 . . . . 5 3 1 7 5 . 23 1 Parts Lost 58 | . . . 3 . 1 . . . 1 . 4 . . 1 1 3 . 1 1 . 2 . 1 6 2 . . 6 . . 8 4 . 7 6 Power 15 | . . . 1 . . . . . . . . . . . . 1 . 1 . . 1 . . 1 . . . 1 . . 6 1 . 2 . Propulsion 8 | . . . . . . . . . 1 . . . . . . 1 . . 1 . . . . 1 1 . . 1 . . . 1 . 1 . Utility 23 | . . . 1 . 1 . . . . . . . . 1 . . . . . . 1 . 1 2 1 . . 3 . . 2 2 . 4 4 Weapon 12 | . . . 1 . . . . . . . 4 . . . 1 1 . . . . . . . 2 . . . 1 . . . . . . 2 Highest Loss Streak 4 | . . . 3 . 1 . . . 1 . 2 . . 1 1 1 . 1 1 . 2 . 1 3 1 . . 2 . . 3 2 . 2 4 Average Slot Usage (%) 85 | . 99 100 97 100 82 87 90 90 89 87 88 84 84 82 84 80 81 92 82 80 76 78 80 81 81 91 95 92 86 90 81 82 82 80 77 Engine 2 | . 14 14 9 11 5 . . . . . 2 2 . . . . 2 3 1 . . . . . . . . . . . . . 3 . . Core 1 | . . . . . 5 11 9 9 9 9 4 . . . . . . 2 . . 2 . . 3 2 5 4 4 4 4 . . . . . Reactor 2 | . . . . . . . . . . . . 4 7 7 7 5 . . 4 6 3 6 4 . 2 . . . . . 3 3 . 6 3 Treads 11 | . 14 . 18 22 17 5 . . . 13 18 8 15 15 15 14 20 26 15 13 13 13 10 5 6 . . 4 14 4 7 7 8 7 7 Wheel 3 | . 14 28 3 . 4 16 18 18 17 3 1 5 . . . . . . . . . . . 4 4 21 19 12 . 7 . . . . . Device 6 | . 15 . . . . . 9 8 3 . 3 9 3 2 7 6 4 . 5 . 2 6 5 3 8 7 3 6 9 11 8 10 19 11 11 Storage 23 | . 7 14 14 22 22 32 27 27 27 26 23 23 23 23 23 28 27 26 30 38 28 32 29 35 24 23 22 23 23 21 23 25 24 21 22 Processor 4 | . . . . . . . . . . . . 5 7 7 7 1 . . . . . . 5 5 8 5 9 9 9 8 6 4 4 12 11 Hackware 3 | . . . . . . . . . . . . . . . . . . 9 . . . . 3 5 8 10 16 17 12 8 6 8 8 . . Protection 8 | . 5 14 29 22 6 . . . 5 8 10 . 3 3 . . 4 2 1 . 5 6 5 . 3 7 9 2 4 9 12 10 4 6 9 Energy Gun 1 | . 17 14 . . . . . . . . . . . . . . . . . . . . . . . . . . 1 3 . . . 3 1 Energy Cannon 3 | . 6 . 17 . . 11 9 . . . . . . . . . . . 3 . . 5 8 2 7 5 4 2 . 2 3 1 2 3 4 Ballistic Gun 7 | . 2 12 2 19 19 . 9 25 23 25 14 14 3 . . 8 19 20 14 20 19 5 1 9 . . . . . . . . . 2 . Slashing Weapon 1 | . . . . . . . . . . . . . . . . . . . . . . . . . 1 5 4 3 4 4 4 3 4 . 3 Naked Turns . | . . . . . . . . . . . . . . . . . . . . . . . . . . . . . . . . . . . . Heaviest Build 292 | 11 32 33 56 55 191 191 177 176 183 182 188 179 180 180 182 186 230 218 245 276 209 185 197 197 205 177 179 212 215 232 246 240 221 292 289 Greatest Support 190 | 40 40 24 46 46 46 46 24 36 36 43 71 110 110 98 98 98 110 88 160 160 160 160 160 160 160 64 64 114 114 114 160 180 180 190 180 Greatest Overweight (x) 64 | . 2 1 1 1 5 7 7 7 15 15 6 4 1 1 1 2 2 2 2 1 1 1 7 7 11 2 2 4 64 7 5 2 1 4 2 Average Overweight (x) 1 | . . 1 . 1 3 6 7 4 5 8 3 3 1 1 1 1 1 2 1 1 . . 1 4 2 2 2 1 10 3 1 . . 1 1 Largest Inventory Capacity 64 | 4 10 10 16 16 44 44 40 40 40 52 40 40 40 40 40 60 56 56 56 64 44 36 42 42 42 36 36 44 44 44 44 44 44 44 44 Average Capacity 37 | 4 7 10 11 16 34 40 40 40 40 39 40 40 40 40 40 41 49 48 48 51 38 36 36 42 37 36 36 38 44 44 43 44 43 44 43 Most Carried 52 | 4 10 10 16 16 44 43 40 40 40 40 40 39 40 40 39 44 52 52 52 52 44 32 36 36 36 36 34 44 44 44 44 44 44 44 44 Average Carried 35 | 1 6 9 10 16 28 37 39 37 38 37 38 36 39 39 38 39 45 45 46 48 37 29 28 33 33 33 32 37 43 43 41 42 41 43 39 Final Capacity 56 | 4 10 10 16 16 44 40 40 40 40 40 40 40 40 40 40 48 56 48 56 44 36 36 42 42 36 36 36 44 44 44 44 44 44 44 12 Final Carried 52 | 4 10 8 16 16 42 40 40 37 40 38 36 39 40 39 39 44 52 47 52 43 33 28 36 30 36 33 34 43 44 44 43 44 41 42 12 Class Distribution -------------------- 39% | Hauler-Mutant 15% | Mutant 12% | Hauler-Tank 5% | Hauler-Gunner 4% | Scavenger-Mutant 4% | Bothacker-Mutant 3% | Scavenger-Gunner 3% | Scavenger-Tank Dominant Class ---------------- Mutant | -10/Materials Mutant | -10/Mines Mutant | -9/Materials Mutant | -9/Mines Hauler-Mutant | -9/Exiles Hauler-Mutant | -8/Mines Hauler-Gunner | -8/Materials Hauler-Gunner | -8/Garrison Hauler-Gunner | -8/Materials Hauler-Tank | -8/Garrison Hauler-Tank | -7/Factory Hauler-Gunner | -7/Waste Hauler-Mutant | -7/Factory Hauler-Mutant | -7/Garrison Hauler-Mutant | -7/Factory Hauler-Mutant | -7/Garrison Hauler-Tank | -6/Factory Scavenger-Gunner | -6/Extension Hauler-Gunner | -6/Cetus Hauler-Gunner | -6/Archives Hauler-Tank | -6/Hub_04(d) Hauler-Mutant | -6/Garrison Scavenger-Mutant | -5/Factory Hauler-Mutant | -5/Garrison Hauler-Mutant | -4/Factory Bothacker-Mutant | -4/Garrison Hacker-Mutant | -3/Research Wizard-Mutant | -3/Armory Bothacker-Mutant | -3/Lab Hauler-Assassin | -2/Research Hauler-Mutant | -2/Quarantine Hauler-Mutant | -2/Section 7 Hauler-Mutant | -1/Access Hauler-Mutant | -1/Command Alien-Mutant | -1/Access_0 Resources | -11 -10 -10 -9 -9 -9 -8 -8 -8 -8 -8 -7 -7 -7 -7 -7 -7 -6 -6 -6 -6 -6 -6 -5 -5 -4 -4 -3 -3 -3 -2 -2 -2 -1 -1 -1 ----------- Run | Scr Mat Min Mat Min Exi Min Mat Gar Mat Gar Fac Was Fac Gar Fac Gar Fac Ext Cet Arc Hub Gar Fac Gar Fac Gar Res Arm Lab Res Qua Sec Acc Com Ac0 Matter Collected 20151 | 339 163 221 636 157 457 191 . 367 140 416 979 534 12 379 224 336 547 562 400 267 1426 301 430 462 1132 442 191 773 195 428 1432 1888 96 2683 945 Remotely 2674 | 68 . . . . . . . . . . . 294 . 51 204 . . . . . . 125 240 304 100 . . . . . . 164 . 904 220 Salvage Created 27973 | 171 123 364 1813 138 404 249 . 367 228 329 1432 1366 105 216 52 397 529 880 349 160 3247 655 967 678 1719 546 191 1642 . 510 820 2514 190 3763 859 Parts 1311 | 17 12 26 97 21 46 15 . 13 9 32 58 24 15 7 3 35 21 35 21 17 178 25 27 18 70 21 8 60 . 23 58 80 11 167 41 Haulers Intercepted 13 | . 1 . 5 . . . . . . . 1 . . . 1 . 1 1 . . . . 1 . 1 . . . . 1 . . . . . Recyclers Shooed 11 | . . . 3 . . 1 . . 1 . 1 . . . . . 2 1 . . . . 1 . . . . . . . . . . 1 . Parts Field Recycled 2 | . . . . . . . . . . . . . . . 2 . . . . . . . . . . . . . . . . . . . . Retrieved Matter 49 | . . . . . . . . . . . . . . . 49 . . . . . . . . . . . . . . . . . . . . Parts Self-Destructed . | . . . . . . . . . . . . . . . . . . . . . . . . . . . . . . . . . . . . Prevented . | . . . . . . . . . . . . . . . . . . . . . . . . . . . . . . . . . . . . Kills | -11 -10 -10 -9 -9 -9 -8 -8 -8 -8 -8 -7 -7 -7 -7 -7 -7 -6 -6 -6 -6 -6 -6 -5 -5 -4 -4 -3 -3 -3 -2 -2 -2 -1 -1 -1 ------- Run | Scr Mat Min Mat Min Exi Min Mat Gar Mat Gar Fac Was Fac Gar Fac Gar Fac Ext Cet Arc Hub Gar Fac Gar Fac Gar Res Arm Lab Res Qua Sec Acc Com Ac0 Combat Hostiles Destroyed 432 | . . 7 33 9 4 10 . 7 5 12 32 5 7 7 1 16 4 9 1 . 38 13 16 19 24 14 1 25 . 5 10 36 2 34 26 Melee 34 | . . . 6 . 1 . . . . . . . . . . . . . . . . . . . 1 1 . 8 . 5 2 9 . 1 . Guns 141 | . . 7 5 4 . . . 7 2 12 14 4 . . . 2 4 9 . . 35 . . 5 . . . 4 . . . . . 22 5 Cannons 114 | . . . 14 . . 1 . . . . 5 . 1 5 1 11 . . . . . 8 12 4 12 9 . 9 . . 2 6 . 6 8 AOE 79 | . . . 2 5 3 9 . . 3 . 13 1 6 2 . 3 . . . . 2 2 . 7 2 . . . . . . 6 1 . 12 Classes Destroyed 27 | 3 2 4 2 . 3 1 . 1 . . 2 1 . . . . . 1 . . 1 . . 1 . . . 2 . . 2 1 . . . Worker 34 | 1 2 . 4 . . 1 . . 3 . 5 . 1 . . . 2 1 . . 11 . . . 3 . . . . . . . . . . Builder 9 | . . 2 . . . . . . . . 2 . . . . . . 1 . . 1 . . . . . . . . . 2 1 . . . Tunneler 8 | 5 . . . 1 . 1 . . . . . . . . . . 1 . . . . . . . . . . . . . . . . . . Hauler 13 | . 1 . 5 . . . . . . . 1 . . . 1 . 1 1 . . . . 1 . 1 . . . . 1 . . . . . Recycler 9 | 1 . 1 1 . . 1 . . . . . . . . . . 1 1 . . 1 . . . . . 1 . . . . 1 . . . Mechanic 1 | . . . . . . . . . . . . . . . . . . . . . 1 . . . . . . . . . . . . . . Operator 8 | . . . 1 . . . . . . . . . . . . . . . . 4 . . . . 1 . . 1 . . . . 1 . . Turret 1 | . . . . . 1 . . . . . . . . . . . . . . . . . . . . . . . . . . . . . . Watcher 11 | . 1 . 4 . . . . . . . . . . . . . . . . . 1 . . . 1 . . 2 . . . 1 . 1 . Swarmer 94 | . . 3 8 7 . 4 . . 1 8 . . 7 . . 11 2 . . . 3 4 4 4 5 9 . 6 . . . 5 . 3 . Saboteur 3 | . . . . . . . . . . . . . . . . . . . . . . . . 2 . 1 . . . . . . . . . Grunt 127 | . . 2 17 2 . 4 . 5 2 2 23 . . 3 . 2 1 3 . . 10 5 8 11 6 4 . 3 . 4 . 10 . . . Brawler 12 | . . . . . . . . 1 . 1 4 . . 2 . . . . . . . . 2 . . . . . . . . 2 . . . Duelist 6 | . . . 1 . . 1 . 1 1 . . . . 1 . . . . . . 1 . . . . . . . . . . . . . . Protector 4 | . . . . . . . . . . . 1 . . . . . . . . . 2 . . . . . . . . . . . . 1 . Sentry 46 | . . 2 7 . . . . . 1 1 2 . . . 1 3 . 5 . . 7 2 . 1 5 . 1 3 . . . 4 . 1 . Demolisher 4 | . . . . . . . . . . . . . . . . . . . . . . . . . . . . 3 . . . . . 1 . Specialist 2 | . . . . . . . . . . . . . . . . . . . . . . . . . . . . 1 . . . . . 1 . Hunter 27 | . . . . . . 1 . . . . . . . . . . 2 . . . . 2 2 1 2 . . 3 . . . 2 2 10 . Programmer 38 | . . . . . . . . . . . 2 . . 1 . . . . . . 3 . . . 6 . . 5 . 1 . 10 . 10 . Behemoth 4 | . . . . . . . . . . . . . . . . . . 1 . . . . . . . . . 1 . . . . . 2 . Compactor 5 | . . . . . . . . . . . . 5 . . . . . . . . . . . . . . . . . . . . . . . Cetus Guard 1 | . . . . . . . . . . . . . . . . . . . 1 . . . . . . . . . . . . . . . . Quarantine Guard 8 | . . . . . . . . . . . . . . . . . . . . . . . . . . . . . . . 8 . . . . S7 Guard 1 | . . . . . . . . . . . . . . . . . . . . . . . . . . . . . . . . 1 . . . M Guard 2 | . . . . . . . . . . . . . . . . . . . . . . . . . . . . . . . . . . 2 . Enhanced Grunt 16 | . . . . . . . . . . . . . . . . . . . 1 . . . . . . . . . . . . . . . 15 Enhanced Sentry 1 | . . . . . . . . . . . . . . . . . . . . . . . . . . . . . . . . . . . 1 Enhanced Hunter 7 | . . . . . . . . . . . . . . . . . . . . . . . . . . . . . . . . . . . 7 Lightning 12 | . . . . . . . . . . . . . . . . . . . . . 12 . . . . . . . . . . . . . . Combat Programmer 2 | . . . . . . . . . . . . . . . . . . . . . . . . . . . . . . . . . . 2 . Executioner 2 | . . . . . . . . . . . . . . . . . . . . . . . . . . . . . . . . 2 . . . Alpha 7 1 | . . . . . . . . . . . . . . . . . . . . . . . . . . . . . . . 1 . . . . Fortress 1 | . . . . . . . . . . . . . . . . . . . . . . . . . . . . . . . 1 . . . . Zionite 8 | . . . . . 8 . . . . . . . . . . . . . . . . . . . . . . . . . . . . . . Assembled 3 | . . . . . 3 . . . . . . . . . . . . . . . . . . . . . . . . . . . . . . Savage 1 | . . . . . . . . . . . . . . . . . . . 1 . . . . . . . . . . . . . . . . Best Kill Streak 17 | 4 4 4 7 4 5 9 . 3 5 5 8 2 5 3 1 4 2 6 1 2 17 9 8 9 6 6 2 6 . 4 1 6 2 13 7 Combat Bots Only 14 | . . 4 6 4 3 7 . 3 3 5 5 2 4 3 1 4 2 3 1 . 14 9 8 9 4 6 1 5 . 4 1 5 2 13 7 Max Kills in Single Turn 7 | 1 1 1 2 2 2 4 . 2 2 3 7 1 3 1 1 2 1 2 1 1 4 2 1 2 2 2 1 1 . 1 1 3 1 2 6 Gunslinging 2 | . . . . . . . . 1 . 2 . . . . . . . 1 . . . . . . . . . . . . . . . . . Exploded 6 | . . . 1 2 2 3 . . 1 . 3 1 3 1 . 2 . . . . 2 2 . 2 2 . . . . . . 3 1 . 6 Melee 1 | . . . 1 . 1 . . . . . . . . . . . . . . . . . . . 1 1 . 1 . 1 1 1 . 1 . Uniques/NPCs Destroyed 11 | . . . . . 4 . . . . . . . . . . . . . 1 . . . . . . . . . . . . . . 2 4 8R-AWN (-9/Exiles) EX-DEC (-9/Exiles) EX-BIN (-9/Exiles) EX-HEX (-9/Exiles) A7 (-6/Cetus) MAIN.C Shell (-1/Command) MAIN.C (-1/Command) A8 (-1/Access_0) A6 (-1/Access_0) A5 (-1/Access_0) Architect (-1/Access_0) Combat | -11 -10 -10 -9 -9 -9 -8 -8 -8 -8 -8 -7 -7 -7 -7 -7 -7 -6 -6 -6 -6 -6 -6 -5 -5 -4 -4 -3 -3 -3 -2 -2 -2 -1 -1 -1 -------- Run | Scr Mat Min Mat Min Exi Min Mat Gar Mat Gar Fac Was Fac Gar Fac Gar Fac Ext Cet Arc Hub Gar Fac Gar Fac Gar Res Arm Lab Res Qua Sec Acc Com Ac0 Damage Taken 37197 | . . 414 1497 152 624 142 . 277 360 260 1567 . 226 284 138 836 443 700 385 . 3550 353 518 1349 1316 539 72 2247 . 1117 2750 3386 92 5269 6334 Core 3217 | . . 59 165 . 39 8 . 17 79 27 123 . 18 30 12 88 28 38 . . 242 18 22 58 72 17 23 344 . 222 203 426 20 328 491 Absorbed by Shields 15681 | . . . . . . . . . . . 127 . . . . 179 . 46 73 . . 30 . . . 36 . 620 . 9 1655 3245 96 4585 4980 Reduced by Siege Mode 1576 | . . . . . . . . . . . . . . . 2 26 3 . . . 283 11 9 124 36 . . . . . 195 81 . 544 262 Core Remaining (%) 65 | 100 . 76 . . . 47 . . . 77 . . . . . 61 . . . . . 61 . 92 . 92 . . 71 . . 18 . . 30 Volleys Fired 1383 | 22 16 36 88 13 39 20 . 20 13 16 69 14 5 28 8 33 24 24 19 14 114 21 32 33 77 33 5 62 . 9 51 114 5 163 143 Largest 4 | 1 2 2 2 2 2 2 . 3 3 3 3 3 2 2 1 3 3 3 3 2 3 1 1 3 1 1 1 2 . 1 1 3 1 4 4 Hottest 400 | 20 112 100 112 46 60 89 . 69 79 69 125 99 83 83 44 71 69 84 170 60 95 70 90 76 90 70 70 139 . 61 120 300 70 400 400 Shots Fired 2338 | 22 26 60 141 19 75 31 . 60 29 48 143 36 6 28 7 55 70 72 54 28 270 21 32 51 75 31 5 70 . 9 51 178 5 335 195 Gun 1459 | 22 20 49 36 12 72 . . 60 20 48 105 28 . . . 30 69 72 45 28 270 . . 28 . . . 15 . . . 97 . 247 86 Cannon 770 | . . . 105 . . 16 . . . . 23 . 2 23 7 23 . . 8 . . 21 32 18 74 31 5 55 . 9 51 79 5 75 108 Launcher 77 | . . . . 7 3 15 . . 9 . 15 8 4 5 . 2 . . 1 . . . . 5 . . . . . . . 2 . . 1 Special 32 | . 6 11 . . . . . . . . . . . . . . 1 . . . . . . . 1 . . . . . . . . 13 . Kinetic 1150 | 22 1 25 24 12 72 . . 60 20 48 125 28 2 23 7 53 69 72 45 28 270 . . 28 . . . 2 . 9 23 . . 64 18 Thermal 295 | . 24 35 26 . . . . . . . . . . . . . . . . . . . 2 . 26 . . 22 . . 6 28 . 32 94 Explosive 71 | . . . . 7 3 15 . . 9 . 11 8 4 5 . 2 . . . . . . . 5 . . . . . . . 2 . . . Electromagnetic 466 | . 1 . 91 . . 16 . . . . 7 . . . . . . . 9 . . 21 30 18 48 31 5 46 . . 22 51 5 60 5 Slashing 341 | . . . . . . . . . . . . . . . . . . . . . . . . . . . . . . . . 97 . 166 78 Robot Hit Streak 47 | 5 3 13 11 6 9 8 . 8 9 7 19 11 8 20 21 11 14 13 11 7 28 32 10 16 34 5 5 13 . . 16 37 10 47 19 Robot Miss Streak 7 | 2 3 2 4 1 3 3 . 2 6 5 5 3 4 6 2 3 3 7 5 2 4 1 1 1 2 3 1 2 . . 2 2 1 3 3 Penetration Max 2 | . . . . . . . . . . . . 1 . . . . . . 2 1 2 1 1 1 1 1 . 1 . . . 1 . 2 . Secondary Targets 22 | . . . 1 . 2 . . 3 . 3 2 . . . . . . 1 . . 3 . . 3 . . . . . . . . . 3 1 Max Gunslinging Chain 2 | . . . 1 . 1 . . 1 . 2 1 . . . . . . 1 . . 1 . . 1 . . . . . . . . . 1 1 Capacitor 97 | . . . . . . . . . . . . . . . . . . . . . . . . . . . . . . . . . . . 97 Autonomous 66 | . . . . . . . . . . . . . . . . . . . . . 66 . . . . . . . . . . . . . . Shots Hit Robots 1948 | 15 7 39 111 12 69 15 . 46 16 27 119 21 7 25 8 42 51 70 39 18 195 19 25 44 51 18 4 74 . 14 112 189 6 279 161 Core Hits 1121 | 7 4 14 44 12 34 19 . 16 16 19 92 8 12 30 10 30 22 93 34 12 111 14 13 31 28 12 1 36 . 10 39 55 4 108 131 Critical Hits 264 | . . 2 . . 1 . . . . . 1 11 . . . 2 . . 16 8 67 5 5 6 13 5 . 12 . 1 6 19 . 44 40 Critical Kills 89 | . . . . . . . . . . . 1 4 . . . 1 . . 1 4 29 1 3 4 5 2 . 6 . 1 2 5 . 16 4 Critical Parts Destroyed 125 | . . 2 . . 1 . . . . . . 2 . . . 1 . . 8 3 38 4 2 2 7 3 . 5 . . 1 6 . 17 23 Melee Attacks 406 | . . 3 31 1 21 . . . 1 . 3 . 2 . 1 1 1 . . . . . . . 13 . . 48 3 32 117 99 13 5 11 Thermal 6 | . . . . . . . . . . . . . . . . . . . . . . . . . . . . . . . 6 . . . . Impact 42 | . . 3 31 1 . . . . 1 . 2 . 2 . 1 1 . . . . . . . . . . . . . . . . . . . Slashing 357 | . . . . . 21 . . . . . 1 . . . . . 1 . . . . . . . 13 . . 48 3 32 111 98 13 5 11 Piercing . | . . . . . . . . . . . . . . . . . . . . . . . . . . . . . . . . . . . . Sneak Attacks 10 | . . . 2 . . . . . . . 2 . 1 . 1 . . . . . . . . . . . . . . 1 2 . 1 . . Combat Hostiles . | . . . . . . . . . . . . . . . . . . . . . . . . . . . . . . . . . . . . Follow-up Attacks 2 | . . . . . . . . . . . . . . . . . . . . . . . . . . . . . . . 2 . . . . Damage Inflicted 93175 | 210 116 548 3165 781 1908 1187 . 724 683 440 4311 1107 685 946 231 1119 790 1559 1001 456 5323 1196 1584 2396 3197 1295 178 3540 . 721 5081 11244 546 8790 26117 Guns 26291 | 205 116 480 392 144 738 . . 724 224 440 1274 469 . . . 292 658 1530 742 401 4620 . . 538 . . . 465 . . . 4157 . 5965 1717 Cannons 29545 | . . . 1677 . . 112 . . . . 441 . 32 497 165 523 . . 159 . . 1014 1584 794 2895 1222 178 1714 . . 768 2497 220 2748 10305 Explosions 23576 | . . . 280 562 181 1075 . . 451 . 2292 638 505 449 . 304 . . 100 . 608 182 . 1064 88 73 . . . . 102 988 102 . 13532 Melee 12836 | . . 65 729 . 920 . . . . . 252 . 148 . 66 . . . . . . . . . 177 . . 1361 . 721 4211 3602 224 . 360 Ramming 927 | 5 . 3 87 75 69 . . . 8 . 52 . . . . . 132 29 . 55 95 . . . 37 . . . . . . . . 77 203 Kinetic 16741 | 205 . 254 268 144 738 . . 724 224 440 1665 469 32 497 165 815 658 1530 742 401 4620 . . 538 . . . 50 . . . . . 1087 475 Thermal 28311 | . 101 226 617 . . 124 . . . . 34 . . . . . . . . . . 182 . . 693 73 . 643 . . 102 360 102 1652 23402 Explosive 7871 | . . . . 562 181 951 . . 451 . 1987 638 505 449 . 304 . . . . . . . 1064 . . . . . . . 779 . . . Electromagnetic 15921 | . 15 . 1464 . . 112 . . . . 321 . . . . . . . 259 . 608 1014 1584 794 2290 1222 178 1486 . . 768 2346 220 1096 144 Impact 1260 | . . 65 729 . . . . . . . 252 . 148 . 66 . . . . . . . . . . . . . . . . . . . . Slashing 22144 | . . . . . 920 . . . . . . . . . . . . . . . . . . . 177 . . 1361 . 721 4211 7759 224 4878 1893 Piercing . | . . . . . . . . . . . . . . . . . . . . . . . . . . . . . . . . . . . . Highest Corruption 24 | . . . . . . . . . . . . 23 23 24 24 24 . . . . 4 4 . . 9 9 . 10 10 . . 11 . 16 3 Average Corruption 10 | . . . . . . . . . . . . 14 23 23 24 24 . . . . 2 4 . . 7 9 . 9 5 . . 8 . 14 2 Corruption Purged 10 | . . . . . . . . . . . . . . . . . . . . . . . . . . . . . 10 . . . . . . Effects 501 | . . . . . . . . . . . . 15 10 30 15 39 . . . . 12 9 . . 48 17 . 29 26 . . 83 . 162 6 Message Errors 85 | . . . . . . . . . . . . 2 3 2 3 7 . . . . . 2 . . 11 2 . 4 10 . . 11 . 28 . Matter Fused 112 | . . . . . . . . . . . . 2 . 10 3 7 . . . . 2 1 . . 17 2 . 7 4 . . 13 . 42 2 Heat Flow Errors 50 | . . . . . . . . . . . . 2 . . 2 1 . . . . 3 2 . . 6 1 . 2 4 . . 12 . 15 . Energy Discharges 47 | . . . . . . . . . . . . 3 2 2 3 6 . . . . . 1 . . 2 . . 5 4 . . 8 . 11 . Parts Rejected 6 | . . . . . . . . . . . . . . 1 . 2 . . . . . . . . 2 . . 1 . . . . . . . Data Loss (minor) 47 | . . . . . . . . . . . . . 1 1 . 2 . . . . 2 2 . . 5 4 . 4 2 . . 9 . 15 . Data Loss (major) 13 | . . . . . . . . . . . . 1 . 1 . 1 . . . . . . . . 1 . . 1 2 . . 2 . 4 . Misfires 3 | . . . . . . . . . . . . . . . . . . . . . . . . . . 1 . . . . . . . 2 . Alerts 5 | . . . . . . . . . . . . . . . . . . . . . . . . . . . . . . . . . . 5 . Misdirections 37 | . . . . . . . . . . . . 2 1 3 3 4 . . . . . . . . . . . 1 . . . 6 . 17 . Targeting Errors 80 | . . . . . . . . . . . . 3 3 8 . 9 . . . . 5 1 . . 2 4 . 3 . . . 19 . 20 3 Weapon Failures 16 | . . . . . . . . . . . . . . 2 1 . . . . . . . . . 2 3 . 1 . . . 3 . 3 1 Overload Shots 9 | . . . . . . . . . . . . . . . . . . . . . . . . . . . . 9 . . . . . . . Overflow Damage 2784 | . . . 170 12 . 16 . . 11 . 358 68 10 41 . . 1 . . 9 8 . 5 134 53 18 . 61 . . 166 355 6 29 1253 Projectiles 1001 | . . . 30 . . . . . . . . . . . . . . . . . . . 5 98 53 18 . 41 . . . 52 6 10 688 Explosions 1022 | . . . . 12 . 16 . . 11 . 152 68 10 41 . . . . . . . . . 36 . . . . . . . 128 . . 548 Melee 761 | . . . 140 . . . . . . . 206 . . . . . 1 . . 9 8 . . . . . . 20 . . 166 175 . 19 17 Knockbacks 46 | . . 2 4 . . . . . . . 8 . 4 16 . 3 . . . . 1 . . . . . . 1 . . . . . . 7 Impact 13 | . . 2 4 . . . . . . . 2 . 1 . . . . . . . 1 . . . . . . . . . . . . . 3 Kinetic 32 | . . . . . . . . . . . 6 . 3 16 . 3 . . . . . . . . . . . 1 . . . . . . 3 Secondary 1 | . . . . . . . . . . . . . . . . . . . . . . . . . . . . . . . . . . . 1 Self-Inflicted Damage 796 | . . 1 . . . 47 . . 26 . 204 . . . . . . . . . 51 . . . . . . . . . 70 126 . . 271 Shots 25 | . . . . . . 2 . . 1 . 7 . . . . . . . . . 3 . . . . . . . . . 1 2 . . 9 Rammed 66 | 1 . 1 12 5 7 . . . 1 . 2 . . . . . 5 3 . 7 2 . . . 4 . . . . . . . . 3 13 Targets Rammed 74 | 2 . 1 14 5 7 . . . 1 . 2 . . . . . 7 3 . 7 4 . . . 4 . . . . . . . . 4 13 Kicked . | . . . . . . . . . . . . . . . . . . . . . . . . . . . . . . . . . . . . Crushed 8 | 1 . . 2 . . . . . . . . . . . . . 2 . . . 2 . . . . . . . . . . . . 1 . Highest Temperature 487 | . 249 243 315 75 36 235 . 171 201 234 66 163 6 50 153 87 20 67 187 . 487 199 130 125 254 120 . 225 226 . 276 409 8 475 344 Average Temperature 95 | . 80 70 107 29 18 80 . 88 67 103 15 49 4 16 50 17 10 21 75 . 145 58 53 52 71 49 . 48 96 . 127 102 5 136 112 Received Heat Transfer 4305 | . . 180 486 39 . 27 . 162 81 108 595 . . 90 48 159 9 171 53 . 864 45 66 330 39 99 . 85 . 126 28 180 . 151 84 Effects 16 | . . . 4 . . . . . . . . . . . . . . . . . 7 . . . . . . . . . . . . 5 . Shutdowns 2 | . . . . . . . . . . . . . . . . . . . . . 1 . . . . . . . . . . . . 1 . Energy Bleed 4 | . . . 2 . . . . . . . . . . . . . . . . . 1 . . . . . . . . . . . . 1 . Interference 7 | . . . 2 . . . . . . . . . . . . . . . . . 3 . . . . . . . . . . . . 2 . Short Circuit 1 | . . . . . . . . . . . . . . . . . . . . . 1 . . . . . . . . . . . . . . Damage (minor) 2 | . . . . . . . . . . . . . . . . . . . . . 1 . . . . . . . . . . . . 1 . Siege Activations 67 | . . . . . . . . . . . . . . 1 1 5 2 . 1 1 9 2 3 4 4 . . . . . 6 7 . 9 12 Total Turns 1376 | . . . . . . . . . . . . . . 15 13 67 7 . 31 32 239 25 22 64 38 . . . . . 239 145 . 275 164 Longest Duration 137 | . . . . . . . . . . . . . . 15 13 17 5 . 31 32 56 14 12 29 17 . . . . . 137 68 . 85 28 Robots Corrupted 63 | . . . 2 . . . . . . . . . . . . . . . 1 . 1 3 5 3 9 4 1 5 . . 6 15 1 6 1 Combat Hostiles 60 | . . . 2 . . . . . . . . . . . . . . . 1 . 1 3 4 3 9 4 1 4 . . 6 15 1 5 1 Parts Fried 157 | . . . 16 . . . . . . . 5 . . . . . . . . . 6 15 14 9 17 4 1 11 . . 12 32 . 8 7 Impact Corruptions 23 | . . . 9 . . . . . . . 7 . . . . . 1 . . 1 2 . . . . . . . . . . . . 1 2 Robots Melted . | . . . . . . . . . . . . . . . . . . . . . . . . . . . . . . . . . . . . Combat Hostiles . | . . . . . . . . . . . . . . . . . . . . . . . . . . . . . . . . . . . . Parts Melted 8 | . . . 3 . . . . . 1 . . . . . . . . . . . . . . . . . . 2 . . . 1 . . 1 Heat Transferred 12509 | . 259 555 1016 . . 150 . . . . . . . . . . . . . . . 200 . . 475 50 . 535 . . 50 311 50 848 8010 Parts Sabotaged . | . . . . . . . . . . . . . . . . . . . . . . . . . . . . . . . . . . . . Parts Stolen . | . . . . . . . . . . . . . . . . . . . . . . . . . . . . . . . . . . . . Parts Stripped . | . . . . . . . . . . . . . . . . . . . . . . . . . . . . . . . . . . . . Power Chain Reactions 16 | . . . 7 . . . . . . . 1 . . . . . . . . . 2 1 . . 1 1 . . . . 1 1 1 . . Missiles Intercepted . | . . . . . . . . . . . . . . . . . . . . . . . . . . . . . . . . . . . . Alert | -11 -10 -10 -9 -9 -9 -8 -8 -8 -8 -8 -7 -7 -7 -7 -7 -7 -6 -6 -6 -6 -6 -6 -5 -5 -4 -4 -3 -3 -3 -2 -2 -2 -1 -1 -1 ------- Run | Scr Mat Min Mat Min Exi Min Mat Gar Mat Gar Fac Was Fac Gar Fac Gar Fac Ext Cet Arc Hub Gar Fac Gar Fac Gar Res Arm Lab Res Qua Sec Acc Com Ac0 Peak Influence 1030 | 35 106 180 557 414 . 363 145 263 374 526 694 298 402 446 291 604 520 482 403 276 1016 1016 894 1030 752 631 354 804 . 318 318 771 293 219 . Initial 711 | . 22 . 11 160 . . 141 103 128 236 275 222 208 281 233 203 317 205 222 81 37 711 533 625 540 252 354 58 . . 88 8 103 70 . Average 302 | 21 59 48 317 210 . 144 142 177 205 333 397 268 285 365 267 367 380 215 281 182 285 892 674 908 492 486 188 557 . 100 106 213 184 90 . Maximum Alert Level 3 | . . . 2 2 . 1 . 1 1 2 2 1 2 2 1 2 2 2 2 1 3 3 3 3 3 2 1 3 . 1 1 3 1 2 . Low Security (%) 33 | 100 100 100 13 36 . 54 100 74 71 . 15 . . . . . . 48 21 41 48 . . . . . 64 12 . 86 75 66 61 10 . Level 1 30 | . . . 64 46 . 45 . 25 28 72 42 100 81 67 100 59 71 44 49 58 25 . . . 22 28 35 11 . 13 24 25 38 5 . Level 2 29 | . . . 21 16 . . . . . 27 41 . 18 32 . 40 28 6 29 . 15 . 71 15 72 71 . 41 . . . 5 . 83 . Level 3 6 | . . . . . . . . . . . . . . . . . . . . . 10 100 28 84 4 . . 34 . . . 2 . . . Level 4 . | . . . . . . . . . . . . . . . . . . . . . . . . . . . . . . . . . . . . Level 5 . | . . . . . . . . . . . . . . . . . . . . . . . . . . . . . . . . . . . . High Security . | . . . . . . . . . . . . . . . . . . . . . . . . . . . . . . . . . . . . Max Security . | . . . . . . . . . . . . . . . . . . . . . . . . . . . . . . . . . . . . Squads Dispatched 53 | . 2 . 5 . . . 1 . 2 . 6 . . . . . 2 4 . . 6 . 3 . 7 . . 5 . . 1 7 2 . . Investigation 10 | . 1 . 2 . . . . . 1 . 1 . . . . . . 2 . . . . 1 . 1 . . . . . . 1 . . . Extermination 17 | . . . . . . . . . . . 2 . . . . . 1 . . . 3 . . . 3 . . 3 . . . 5 . . . Reinforcement 16 | . 1 . 3 . . . 1 . 1 . 1 . . . . . 1 2 . . . . 1 . . . . 2 . . 1 . 2 . . Assault 5 | . . . . . . . . . . . 2 . . . . . . . . . 1 . 1 . . . . . . . . 1 . . . Garrison 5 | . . . . . . . . . . . . . . . . . . . . . 2 . . . 3 . . . . . . . . . . Intercept . | . . . . . . . . . . . . . . . . . . . . . . . . . . . . . . . . . . . . Construction Impeded 3 | . . . . . . . . . . . . . . . . . . 2 . . . . . . . . . . . . 1 . . . . Haulers Reinforced 1 | . . . . . . . . . . . . . . . . . . . . . . . 1 . . . . . . . . . . . . Stealth | -11 -10 -10 -9 -9 -9 -8 -8 -8 -8 -8 -7 -7 -7 -7 -7 -7 -6 -6 -6 -6 -6 -6 -5 -5 -4 -4 -3 -3 -3 -2 -2 -2 -1 -1 -1 --------- Run | Scr Mat Min Mat Min Exi Min Mat Gar Mat Gar Fac Was Fac Gar Fac Gar Fac Ext Cet Arc Hub Gar Fac Gar Fac Gar Res Arm Lab Res Qua Sec Acc Com Ac0 Distress Signals 46 | . . . 3 . . . . . 2 . . . . . . . . 1 1 . 4 . . . 1 . . 3 . 1 . . . 30 . Communications Jammed 57 | . . . . . . . . . . . . . . . . . . . . . 1 . . . . . . . . . . 56 . . . Distress Signals 57 | . . . . . . . . . . . . . . . . . . . . . 1 . . . . . . . . . . 56 . . . Times Spotted 693 | . 2 7 50 10 16 9 1 8 13 13 40 6 8 10 1 16 12 32 12 19 62 13 20 26 28 18 1 48 . 17 11 72 4 37 51 Peak Tracking Total 15 | . 1 4 5 4 9 6 2 3 7 5 5 2 4 3 1 6 4 4 5 . 15 4 4 9 5 7 1 6 . 6 1 8 1 5 4 Tactical Retreats 47 | . . . 4 . 3 . . 2 1 1 5 1 . 3 . 2 . 1 . . 3 1 . 4 2 2 . 6 . . . 6 . . . Traps | -11 -10 -10 -9 -9 -9 -8 -8 -8 -8 -8 -7 -7 -7 -7 -7 -7 -6 -6 -6 -6 -6 -6 -5 -5 -4 -4 -3 -3 -3 -2 -2 -2 -1 -1 -1 ------- Run | Scr Mat Min Mat Min Exi Min Mat Gar Mat Gar Fac Was Fac Gar Fac Gar Fac Ext Cet Arc Hub Gar Fac Gar Fac Gar Res Arm Lab Res Qua Sec Acc Com Ac0 Traps Triggered 50 | . . . 1 . . . . 1 1 3 2 . . 2 . 2 2 7 . . . 6 . 4 4 2 . 1 . . 1 . . 11 . Indirectly . | . . . . . . . . . . . . . . . . . . . . . . . . . . . . . . . . . . . . Trap Hack Attempts . | . . . . . . . . . . . . . . . . . . . . . . . . . . . . . . . . . . . . Triggered . | . . . . . . . . . . . . . . . . . . . . . . . . . . . . . . . . . . . . Disarmed . | . . . . . . . . . . . . . . . . . . . . . . . . . . . . . . . . . . . . Reprogrammed . | . . . . . . . . . . . . . . . . . . . . . . . . . . . . . . . . . . . . Reused . | . . . . . . . . . . . . . . . . . . . . . . . . . . . . . . . . . . . . Traps Extracted . | . . . . . . . . . . . . . . . . . . . . . . . . . . . . . . . . . . . . Installed . | . . . . . . . . . . . . . . . . . . . . . . . . . . . . . . . . . . . . Triggered . | . . . . . . . . . . . . . . . . . . . . . . . . . . . . . . . . . . . . Exploded 2 | . . . . . 2 . . . . . . . . . . . . . . . . . . . . . . . . . . . . . . Machines | -11 -10 -10 -9 -9 -9 -8 -8 -8 -8 -8 -7 -7 -7 -7 -7 -7 -6 -6 -6 -6 -6 -6 -5 -5 -4 -4 -3 -3 -3 -2 -2 -2 -1 -1 -1 ---------- Run | Scr Mat Min Mat Min Exi Min Mat Gar Mat Gar Fac Was Fac Gar Fac Gar Fac Ext Cet Arc Hub Gar Fac Gar Fac Gar Res Arm Lab Res Qua Sec Acc Com Ac0 Machines Disabled 108 | . 1 . 9 1 7 1 . . 2 . 5 . 1 . . 1 . 2 1 3 17 . 2 1 4 3 . 10 1 1 12 13 . 4 6 Max in Single Turn 6 | . 1 . 3 1 2 1 . . 1 . 5 . 1 . . 1 . . 1 1 6 . 2 1 1 1 . 1 1 1 1 1 . 1 1 Garrison Access 6 | . . . . . . . . . . . . . . . . . . . . . . . . . 2 . 1 . . 1 1 . 1 . . Garrison Relay 2 | . . . . . . . . . . . . . . . . 1 . . . . . . . . . 1 . . . . . . . . . Network Hub 3 | . . . . . . . . . . . . . . . . . . . . . 3 . . . . . . . . . . . . . . Machines Sabotaged . | . . . . . . . . . . . . . . . . . . . . . . . . . . . . . . . . . . . . Garrisons Compromised . | . . . . . . . . . . . . . . . . . . . . . . . . . . . . . . . . . . . . Overloaded Fab Kills . | . . . . . . . . . . . . . . . . . . . . . . . . . . . . . . . . . . . . Fab Network Shutdowns . | . . . . . . . . . . . . . . . . . . . . . . . . . . . . . . . . . . . . Hacking | -11 -10 -10 -9 -9 -9 -8 -8 -8 -8 -8 -7 -7 -7 -7 -7 -7 -6 -6 -6 -6 -6 -6 -5 -5 -4 -4 -3 -3 -3 -2 -2 -2 -1 -1 -1 --------- Run | Scr Mat Min Mat Min Exi Min Mat Gar Mat Gar Fac Was Fac Gar Fac Gar Fac Ext Cet Arc Hub Gar Fac Gar Fac Gar Res Arm Lab Res Qua Sec Acc Com Ac0 Machines Accessed 114 | . 3 . 10 1 1 . 2 . 2 . 6 . 1 . 2 . 3 11 4 . 7 . 4 . 8 . 2 9 . 6 16 9 5 2 . Terminals 78 | . 2 . 8 1 . . 1 . 1 . 3 . . . 1 . 3 11 4 . 6 . 1 . 3 . 1 4 . 4 11 8 3 2 . Fabricators 4 | . . . . . . . . . . . 1 . . . . . . . . . . . . . . . . 3 . . . . . . . Repair Stations 6 | . . . . . . . . . . . . . . . . . . . . . . . 2 . . . . 1 . 1 1 . 1 . . Recycling Units 5 | . 1 . 1 . . . . . . . 2 . . . . . . . . . . . . . . . . 1 . . . . . . . Scanalyzers 7 | . . . 1 . . . . . . . . . . . . . . . . . . . . . 2 . . . . . 3 1 . . . Garrison Access 13 | . . . . . . . 1 . 1 . . . 1 . 1 . . . . . 1 . 1 . 3 . 1 . . 1 1 . 1 . . Total Hacks 554 | . 12 . 29 6 1 . 8 . 7 . 6 . 2 . 4 . 10 42 16 . 21 . 30 . 35 . 10 52 . 38 100 61 55 9 . Successful 324 | . 7 . 13 5 1 . 4 . 4 . 2 . 2 . 3 . 3 24 10 . 11 . 16 . 17 . 9 36 . 23 66 34 29 5 . Failed 224 | . 5 . 15 . . . 4 . 3 . 4 . . . 1 . 7 17 5 . 10 . 14 . 18 . 1 15 . 15 33 27 26 4 . Catastrophic 27 | . . . 1 . . . 1 . . . 2 . . . . . 1 2 1 . 1 . 2 . 2 . . 1 . 1 3 5 4 . . Database Lockouts 6 | . . . 1 1 . . . . . . . . . . . . . 1 1 . . . . . . . . 1 . . 1 . . . . Manual 261 | . 5 . 18 5 1 . 3 . 5 . 2 . . . 1 . 3 27 17 . 11 . 1 . 6 . 6 17 . 17 34 37 38 7 . Terminals 404 | . 7 . 25 6 . . 3 . 5 . 3 . . . 2 . 10 42 16 . 19 . 9 . 19 . 8 24 . 32 62 60 43 9 . Fabricators 22 | . . . . . . . . . . . 1 . . . . . . . . . . . . . . . . 21 . . . . . . . Repair Stations 54 | . . . . . . . . . . . . . . . . . . . . . . . 19 . . . . 5 . 4 16 . 10 . . Recycling Units 11 | . 5 . 2 . . . . . . . 2 . . . . . . . . . . . . . . . . 2 . . . . . . . Scanalyzers 34 | . . . 2 . . . . . . . . . . . . . . . . . . . . . 11 . . . . . 20 1 . . . Garrison Access 28 | . . . . . . . 5 . 2 . . . 2 . 2 . . . . . 2 . 2 . 5 . 2 . . 2 2 . 2 . . Terminal Hacks 167 | . 2 . 9 4 1 . 1 . 1 . . . . . 1 . 3 22 7 . 5 . 2 . 5 . 7 11 . 14 24 24 21 3 . Part Schematic 11 | . . . . . . . . . . . . . . . . . 1 1 . . . . . . . . 2 2 . . 2 3 . . . Robot Schematic 4 | . . . 1 . . . . . . . . . . . . . . 1 . . . . . . . . . . . . 1 1 . . . Robot Analysis 13 | . 2 . 1 . . . . . . . . . . . . . . . . . . . . . . . . 2 . 2 4 1 1 . . Prototype ID Bank 52 | . . . 2 2 . . . . . . . . . . 1 . . 7 6 . 1 . 1 . 1 . 2 1 . 6 2 3 17 . . Open Door 13 | . . . . . . . . . . . . . . . . . 1 4 . . . . . . . . . . . . 1 3 3 1 . Level Access Points 2 | . . . . . . . . . . . . . . . . . . . . . . . . . . . . 1 . . . 1 . . . Branch Access Points 4 | . . . 1 . . . . . . . . . . . . . . . . . . . . . 1 . 1 . . 1 . . . . . Emergency Access Points 2 | . . . . . . . . . . . . . . . . . . . . . . . . . . . . 1 . . 1 . . . . Machine Index 2 | . . . . . . . . . . . . . . . . . . . . . . . . . . . . . . . 1 1 . . . Terminal Index 5 | . . . . . . . . . . . . . . . . . . 2 . . . . . . . . . 1 . 1 . 1 . . . Garrison Index 1 | . . . . . . . . . . . . . . . . . . . . . 1 . . . . . . . . . . . . . . Alert Level 2 | . . . 1 . . . . . . . . . . . . . . 1 . . . . . . . . . . . . . . . . . Unreport Threat 22 | . . . 1 . . . . . . . . . . . . . . 2 1 . 2 . . . 3 . 2 . . . 4 5 . 2 . Locate Traps 8 | . . . . . . . 1 . . . . . . . . . . 1 . . . . 1 . . . . 2 . 2 1 . . . . Dispatch Records 3 | . . . . . . . . . . . . . . . . . . 1 . . . . . . . . . . . . 1 1 . . . Security Status 2 | . . . . . . . . . . . . . . . . . . . . . . . . . . . . . . . 2 . . . . Patrol Status 5 | . . . 1 1 . . . . . . . . . . . . . . . . . . . . . . . . . 1 1 1 . . . Recall Investigation 2 | . . . . . . . . . 1 . . . . . . . . 1 . . . . . . . . . . . . . . . . . Recall Extermination 3 | . . . . . . . . . . . . . . . . . . . . . . . . . . . . 1 . . . 2 . . . Recall Reinforcements 2 | . . . 1 . . . . . . . . . . . . . . 1 . . . . . . . . . . . . . . . . . Registered Prototypes 1 | . . . . . . . . . . . . . . . . . . . . . . . . . . . . . . 1 . . . . . Zone Layout 7 | . . . . 1 . . . . . . . . . . . . 1 . . . 1 . . . . . . . . . 3 1 . . . EX-Prototype ID Bank 1 | . . . . . 1 . . . . . . . . . . . . . . . . . . . . . . . . . . . . . . Fabricator Hacks 12 | . . . . . . . . . . . . . . . . . . . . . . . . . . . . 12 . . . . . . . Load Schematic 5 | . . . . . . . . . . . . . . . . . . . . . . . . . . . . 5 . . . . . . . Build 7 | . . . . . . . . . . . . . . . . . . . . . . . . . . . . 7 . . . . . . . Repair Station Hacks 39 | . . . . . . . . . . . . . . . . . . . . . . . 11 . . . . 3 . 4 16 . 5 . . Scan Component 22 | . . . . . . . . . . . . . . . . . . . . . . . 7 . . . . 2 . 2 8 . 3 . . Repair 17 | . . . . . . . . . . . . . . . . . . . . . . . 4 . . . . 1 . 2 8 . 2 . . Recycling Unit Hacks 5 | . 2 . 1 . . . . . . . 1 . . . . . . . . . . . . . . . . 1 . . . . . . . Report Inventory 3 | . 1 . 1 . . . . . . . 1 . . . . . . . . . . . . . . . . . . . . . . . . Retrieve Components 2 | . 1 . . . . . . . . . . . . . . . . . . . . . . . . . . 1 . . . . . . . Scanalyzer 22 | . . . 2 . . . . . . . . . . . . . . . . . . . . . 6 . . . . . 13 1 . . . Insert Component 18 | . . . 1 . . . . . . . . . . . . . . . . . . . . . 4 . . . . . 12 1 . . . Analyze 4 | . . . 1 . . . . . . . . . . . . . . . . . . . . . 2 . . . . . 1 . . . . Garrison Access Hacks 25 | . . . . . . . 2 . 2 . . . 2 . 2 . . . . . 2 . 2 . 5 . 2 . . 2 2 . 2 . . Unlock Access 7 | . . . . . . . 1 . 1 . . . 1 . 1 . . . . . 1 . 1 . 1 . . . . . . . . . . Seal Access 6 | . . . . . . . . . . . . . . . . . . . . . . . . . 2 . 1 . . 1 1 . 1 . . Coupler Status 12 | . . . . . . . 1 . 1 . . . 1 . 1 . . . . . 1 . 1 . 2 . 1 . . 1 1 . 1 . . Unauthorized Hacks 54 | . 3 . 1 1 . . 1 . 1 . 1 . . . . . . 2 3 . 4 . 1 . 1 . . 9 . 3 11 9 1 2 . Terminals 44 | . 2 . . 1 . . . . 1 . . . . . . . . 2 3 . 4 . 1 . 1 . . 3 . 3 11 9 1 2 . Track 18 | . 1 . . 1 . . . . . . . . . . . . . 1 . . 2 . . . . . . . . 1 8 3 . 1 . Botnet 19 | . 1 . . . . . . . 1 . . . . . . . . 1 3 . 1 . 1 . 1 . . 2 . 1 2 4 1 . . Disrupt 2 | . . . . . . . . . . . . . . . . . . . . . . . . . . . . . . . . 1 . 1 . Operators 5 | . . . . . . . . . . . . . . . . . . . . . 1 . . . . . . 1 . 1 1 1 . . . Fabricators 5 | . . . . . . . . . . . . . . . . . . . . . . . . . . . . 5 . . . . . . . Report 1 | . . . . . . . . . . . . . . . . . . . . . . . . . . . . 1 . . . . . . . Prioritize 2 | . . . . . . . . . . . . . . . . . . . . . . . . . . . . 2 . . . . . . . Siphon 2 | . . . . . . . . . . . . . . . . . . . . . . . . . . . . 2 . . . . . . . Repair Stations . | . . . . . . . . . . . . . . . . . . . . . . . . . . . . . . . . . . . . Recycling Units 4 | . 1 . 1 . . . . . . . 1 . . . . . . . . . . . . . . . . 1 . . . . . . . Mask 1 | . . . . . . . . . . . . . . . . . . . . . . . . . . . . 1 . . . . . . . Tunnel 3 | . 1 . 1 . . . . . . . 1 . . . . . . . . . . . . . . . . . . . . . . . . Scanalyzers . | . . . . . . . . . . . . . . . . . . . . . . . . . . . . . . . . . . . . Garrison Access 1 | . . . . . . . 1 . . . . . . . . . . . . . . . . . . . . . . . . . . . . Reprogram 1 | . . . . . . . 1 . . . . . . . . . . . . . . . . . . . . . . . . . . . . Data Cores Recovered 4 | . . . 1 . . . . . . . . . . . . . . 1 . . . . . . 1 . . 1 . . . . . . . Used 1 | . . . . . . . . . . . . . . . . . . 1 . . . . . . . . . . . . . . . . . Hacking Detections 81 | . 3 . 10 1 . . 2 . 1 . 4 . 1 . 2 . 3 11 4 . 6 . 3 . 4 . 1 5 . 4 8 3 4 1 . Full Trace Events 5 | . . . . . . . . . . . . . . . . . . 2 . . . . 1 . 1 . . . . . . 1 . . . Feedback Events . | . . . . . . . . . . . . . . . . . . . . . . . . . . . . . . . . . . . . Feedback Blocked . | . . . . . . . . . . . . . . . . . . . . . . . . . . . . . . . . . . . . Robot Schematics Acquired 4 | . . . 1 . . . . . . . . . . . . . . 1 . . . . . . . . . . . . 1 1 . . . Robots Built 4 | . . . . . . . . . . . . . . . . . . . . . . . . . . . . 4 . . . . . . . Matter 288 | . . . . . . . . . . . . . . . . . . . . . . . . . . . . 288 . . . . . . . Time 102 | . . . . . . . . . . . . . . . . . . . . . . . . . . . . 102 . . . . . . . Total Robot Build Rating 32 | . . . . . . . . . . . . . . . . . . . . . . . . . . . . 32 . . . . . . . Part Schematics Acquired 15 | . . . 1 . . . . . . . . . . . . . 1 1 . . . . . . 2 . 2 2 . . 3 3 . . . Parts Built 10 | . . . . . . . . . . . . . . . . . . . . . . . . . . . . 10 . . . . . . . Matter 1208 | . . . . . . . . . . . . . . . . . . . . . . . . . . . . 1208 . . . . . . . Time 205 | . . . . . . . . . . . . . . . . . . . . . . . . . . . . 205 . . . . . . . Total Part Build Rating 52 | . . . . . . . . . . . . . . . . . . . . . . . . . . . . 52 . . . . . . . Parts Repaired 17 | . . . . . . . . . . . . . . . . . . . . . . . 4 . . . . 1 . 2 8 . 2 . . Time 762 | . . . . . . . . . . . . . . . . . . . . . . . 162 . . . . 28 . 52 486 . 34 . . Parts Recycled . | . . . . . . . . . . . . . . . . . . . . . . . . . . . . . . . . . . . . Recycled Matter . | . . . . . . . . . . . . . . . . . . . . . . . . . . . . . . . . . . . . Retrieved Matter . | . . . . . . . . . . . . . . . . . . . . . . . . . . . . . . . . . . . . Retrieved Components 5 | . 3 . . . . . . . . . . . . . . . . . . . . . . . . . . 2 . . . . . . . Parts Scanalyzed 4 | . . . 1 . . . . . . . . . . . . . . . . . . . . . 2 . . . . . 1 . . . . Part Schematics Acquired 4 | . . . 1 . . . . . . . . . . . . . . . . . . . . . 2 . . . . . 1 . . . . Parts Damaged . | . . . . . . . . . . . . . . . . . . . . . . . . . . . . . . . . . . . . Bothacking | -11 -10 -10 -9 -9 -9 -8 -8 -8 -8 -8 -7 -7 -7 -7 -7 -7 -6 -6 -6 -6 -6 -6 -5 -5 -4 -4 -3 -3 -3 -2 -2 -2 -1 -1 -1 ------------ Run | Scr Mat Min Mat Min Exi Min Mat Gar Mat Gar Fac Was Fac Gar Fac Gar Fac Ext Cet Arc Hub Gar Fac Gar Fac Gar Res Arm Lab Res Qua Sec Acc Com Ac0 Used RIF Installer 7 | . . . . . . . . 1 . 1 . . . 1 . 1 . . . . . 1 . 1 . 1 . . . . . . . . . Coupler Efficiency 1 | . . . . . . . . . . 1 . . . . . . . . . . . . . . . . . . . . . . . . . Alert ID Control 1 | . . . . . . . . . . . . . . . . . . . . . . . . . . 1 . . . . . . . . . Structural Interface 1 | . . . . . . . . . . . . . . 1 . . . . . . . . . . . . . . . . . . . . . Program Shield 1 | . . . . . . . . . . . . . . . . . . . . . . . . 1 . . . . . . . . . . . Autooverride 1 | . . . . . . . . . . . . . . . . 1 . . . . . . . . . . . . . . . . . . . Autoassimilate 1 | . . . . . . . . . . . . . . . . . . . . . . 1 . . . . . . . . . . . . . Robots Hacked 2 | . . . . . . . . . . . . . . . . . 1 . . . . . . . 1 . . . . . . . . . . Non-combat 2 | . . . . . . . . . . . . . . . . . 1 . . . . . . . 1 . . . . . . . . . . Combat . | . . . . . . . . . . . . . . . . . . . . . . . . . . . . . . . . . . . . Robot Hacks Applied 2 | . . . . . . . . . . . . . . . . . 1 . . . . . . . 1 . . . . . . . . . . find_chute 2 | . . . . . . . . . . . . . . . . . 1 . . . . . . . 1 . . . . . . . . . . Relay Couplers Released 14 | . . . . . . . . . . . . . . . . 4 . . . . . . . . . 4 . . . . 4 . 2 . . Machine Destruction 10 | . . . . . . . . . . . . . . . . 4 . . . . . . . . . 4 . . . . . . 2 . . Programmers 4 | . . . . . . . . . . . . . . . . . . . . . . . . . . . . . . . 4 . . . . Robots Rewired 26 | . . . . . . . . . . . . . . . . . 1 15 . . . . . . . . . 6 . . . . . 4 . Allies Hacked 1 | . . . . . . . . . . . . . . . . . . . . . . . . . . . . 1 . . . . . . . Hacks Repelled . | . . . . . . . . . . . . . . . . . . . . . . . . . . . . . . . . . . . . Allies | -11 -10 -10 -9 -9 -9 -8 -8 -8 -8 -8 -7 -7 -7 -7 -7 -7 -6 -6 -6 -6 -6 -6 -5 -5 -4 -4 -3 -3 -3 -2 -2 -2 -1 -1 -1 -------- Run | Scr Mat Min Mat Min Exi Min Mat Gar Mat Gar Fac Was Fac Gar Fac Gar Fac Ext Cet Arc Hub Gar Fac Gar Fac Gar Res Arm Lab Res Qua Sec Acc Com Ac0 Total Allies 49 | . . . . . . . . . . . . . . . . . 4 20 5 . . . . . . . . 10 . . . . . 4 6 Largest Group 11 | . . . . . . . . . . . . . . . . . 3 11 11 7 2 . . . . . . 7 . . . . . 1 6 Highest-Rated Group 711 | . . . . . . . . . . . . . . . . . 93 412 711 442 169 . . . . . . 246 . . . . . 69 86 Highest-Rated Ally 156 | . . . . . . . . . . . . . . . . . 41 156 156 94 87 . . . . . . 48 . . . . . 69 15 Total Orders 31 | . . . . . . . . . . . . . . . . . . . . 7 . . . . 22 2 . . . . . . . . . STAY 5 | . . . . . . . . . . . . . . . . . . . . 4 . . . . 1 . . . . . . . . . . ROAM 1 | . . . . . . . . . . . . . . . . . . . . 1 . . . . . . . . . . . . . . . FOLLOW 2 | . . . . . . . . . . . . . . . . . . . . 2 . . . . . . . . . . . . . . . EXPLORE 11 | . . . . . . . . . . . . . . . . . . . . . . . . . 10 1 . . . . . . . . . RETURN 12 | . . . . . . . . . . . . . . . . . . . . . . . . . 11 1 . . . . . . . . . Ally Attacks 335 | . . . . . . . . . . . . . . . . . 23 158 44 18 13 . . . . . . 52 . . . . . 5 22 Total Damage 8270 | . . . . . . . . . . . . . . . . . 472 3351 1087 739 408 . . . . . . 1588 . . . . . 193 432 Kills 59 | . . . . . . . . . . . . . . . . . 7 26 10 4 4 . . . . . . 7 . . . . . . 1 Allies Corrupted 3 | . . . . . . . . . . . . . . . . . . . . 1 . . . . . . . 1 . . . . . 1 . Allies Melted . | . . . . . . . . . . . . . . . . . . . . . . . . . . . . . . . . . . . . Intel | -11 -10 -10 -9 -9 -9 -8 -8 -8 -8 -8 -7 -7 -7 -7 -7 -7 -6 -6 -6 -6 -6 -6 -5 -5 -4 -4 -3 -3 -3 -2 -2 -2 -1 -1 -1 ------- Run | Scr Mat Min Mat Min Exi Min Mat Gar Mat Gar Fac Was Fac Gar Fac Gar Fac Ext Cet Arc Hub Gar Fac Gar Fac Gar Res Arm Lab Res Qua Sec Acc Com Ac0 Robot Analysis Total 13 | . 2 . 1 . . . . . . . . . . . . . . . . . . . . . . . . 2 . 2 4 1 1 . . Derelict Logs Recovered 3 | . . 2 . 1 . . . . . . . . . . . . . . . . . . . . . . . . . . . . . . . Drone Launches 22 | . . . . . . . . . . . . . . . . . . . . . . . . . 20 2 . . . . . . . . . Drone Recoveries 21 | . . . . . . . . . . . . . . . . . . . . . . . . . 19 2 . . . . . . . . . Exploration | -11 -10 -10 -9 -9 -9 -8 -8 -8 -8 -8 -7 -7 -7 -7 -7 -7 -6 -6 -6 -6 -6 -6 -5 -5 -4 -4 -3 -3 -3 -2 -2 -2 -1 -1 -1 ------------- Run | Scr Mat Min Mat Min Exi Min Mat Gar Mat Gar Fac Was Fac Gar Fac Gar Fac Ext Cet Arc Hub Gar Fac Gar Fac Gar Res Arm Lab Res Qua Sec Acc Com Ac0 Turns Passed 35546 | 223 401 914 2388 1252 1876 259 35 185 269 670 2096 241 143 318 257 553 556 1660 425 629 1342 448 635 572 1897 255 124 1494 1339 508 3215 2625 514 4354 874 Spaces Moved 15331 | 104 234 583 1173 530 811 106 18 88 149 247 930 124 68 132 119 211 238 682 176 216 485 175 198 272 987 156 90 647 209 305 1275 1118 242 1973 260 Core 44 | 7 . . . . . . . . . . . . . . . . . . . . . . . . . . . . 30 . . . . . 7 Treads 11441 | 97 63 . 1022 530 591 20 . . . 147 610 30 68 132 119 211 238 682 176 216 485 175 193 72 446 . . 108 179 5 1240 1118 242 1973 253 Legs . | . . . . . . . . . . . . . . . . . . . . . . . . . . . . . . . . . . . . Wheels 3846 | . 171 583 151 . 220 86 18 88 149 100 320 94 . . . . . . . . . . 5 200 541 156 90 539 . 300 35 . . . . Hover . | . . . . . . . . . . . . . . . . . . . . . . . . . . . . . . . . . . . . Flight . | . . . . . . . . . . . . . . . . . . . . . . . . . . . . . . . . . . . . Fastest Speed 50 | 50 90 100 100 180 140 160 160 130 130 200 160 140 180 180 180 180 180 200 180 180 160 160 170 150 110 110 110 110 190 120 140 160 160 167 150 Average Speed 175 | 152 114 100 155 180 194 172 160 131 146 239 186 149 180 180 180 183 184 200 183 180 178 179 179 167 158 110 110 124 629 129 171 167 177 189 157 Slowest Speed 3250 | 160 160 100 180 180 240 240 160 160 240 300 200 180 180 180 180 200 200 200 200 180 180 180 180 200 200 110 110 190 3250 190 200 200 185 250 172 Overloaded Moves . | . . . . . . . . . . . . . . . . . . . . . . . . . . . . . . . . . . . . Propulsion Burnouts . | . . . . . . . . . . . . . . . . . . . . . . . . . . . . . . . . . . . . Robots Hopped . | . . . . . . . . . . . . . . . . . . . . . . . . . . . . . . . . . . . . Cave-ins Triggered . | . . . . . . . . . . . . . . . . . . . . . . . . . . . . . . . . . . . . Teleports 7 | . . . . . . . . . . . . . . . . . . . . . . . . . . . . . . 1 . 4 . 1 1 Exploration Rate (%) 46 | 4 37 92 92 98 88 39 6 29 23 50 29 78 5 37 5 45 9 80 61 88 68 46 10 61 38 47 4 46 96 11 86 72 9 59 29 Regions Visited 35 Branch Regions 14 Pre-discovered Areas 5 | . 1 1 1 1 . . . . . . 1 . . . . . . . . . . . . . . . . . . . . . . . . Known Exits Taken 12 | . . . 1 . . . 1 . 1 . . . 1 . 1 . . . . . 1 . 1 . 1 . 1 . 1 1 . 1 . . . Unknown Exits Taken 14 | 1 1 1 . 1 1 1 . . . . . . . . . . 1 1 1 1 . . . . . . . 1 . . 1 . 1 1 . Scrap Searched 2 | . . 1 . 1 . . . . . . . . . . . . . . . . . . . . . . . . . . . . . . . Spaces Dug 230 | . 4 4 . 24 1 . . . 1 . 1 . . . . . 1 . . . 2 . 2 . 15 . . 13 . 20 17 28 10 3 84 Terrain Destroyed 2915 | . 5 11 29 59 22 110 . . 82 . 81 87 22 15 . 24 1 . 2 3 510 . 16 14 22 3 . 20 . 24 54 104 19 5 1571 Melee 88 | . . . . 1 1 . . . 1 . 1 . . . . . 1 . . . . . . . 8 . . 13 . 16 14 19 10 3 . Projectile 198 | . 5 11 1 . 1 . . . . . . 8 . . . . . . 2 3 41 . 2 4 14 1 . 7 . 8 33 22 . 2 33 AOE 2628 | . . . 28 58 20 110 . . 81 . 80 79 22 15 . 24 . . . . 468 . 14 10 . 2 . . . . 7 63 9 . 1538 Terrain Rammed 1 | . . . . . . . . . . . . . . . . . . . . . 1 . . . . . . . . . . . . . . Walls Destroyed 1 | . . . . . . . . . . . . . . . . . . . . . 1 . . . . . . . . . . . . . . Machines Disabled . | . . . . . . . . . . . . . . . . . . . . . . . . . . . . . . . . . . . . Actions | -11 -10 -10 -9 -9 -9 -8 -8 -8 -8 -8 -7 -7 -7 -7 -7 -7 -6 -6 -6 -6 -6 -6 -5 -5 -4 -4 -3 -3 -3 -2 -2 -2 -1 -1 -1 --------- Run | Scr Mat Min Mat Min Exi Min Mat Gar Mat Gar Fac Was Fac Gar Fac Gar Fac Ext Cet Arc Hub Gar Fac Gar Fac Gar Res Arm Lab Res Qua Sec Acc Com Ac0 Total 21823 | 145 327 826 1563 801 1013 153 23 121 177 295 1178 147 78 183 149 332 308 922 237 430 786 288 443 345 1243 223 109 1225 231 378 2142 1627 307 2446 622 Wait 2743 | . 40 182 151 247 46 . . . 3 2 106 . . 12 13 54 13 30 7 154 88 73 184 16 59 3 1 367 3 3 563 158 20 65 80 Move 15303 | 103 233 582 1172 529 810 105 18 87 149 246 930 123 68 131 119 210 237 681 175 215 485 174 198 271 987 155 89 646 208 304 1274 1117 241 1972 259 Hop . | . . . . . . . . . . . . . . . . . . . . . . . . . . . . . . . . . . . . Pick Up 393 | 7 11 1 32 . 42 18 2 . 4 12 16 1 1 2 1 8 10 5 11 12 19 . 13 1 25 6 5 18 6 5 35 16 11 26 11 Fast Attach 175 | 7 6 2 8 . 6 1 . . . 2 5 2 . 1 . 5 2 2 3 . 10 . 2 3 11 . . 8 4 1 19 13 3 38 11 Attach 257 | 1 1 3 12 . 4 5 2 2 1 4 13 . . 2 1 5 2 6 6 6 13 4 5 7 13 3 3 10 . 7 20 26 4 39 27 Detach 131 | 1 . . 3 . 6 1 . . . . 1 . . . . 4 . 1 2 1 11 1 2 2 7 . 1 7 1 5 9 16 . 33 16 Swap 348 | . 9 10 20 6 11 . 1 1 4 1 14 5 2 1 6 5 6 7 5 6 10 3 5 1 24 . 4 24 1 7 20 54 8 24 43 Drop 347 | 2 11 6 32 . 21 3 . 3 1 6 19 2 . 2 . 3 1 8 9 15 31 1 2 1 23 7 1 11 5 5 37 14 2 55 8 Fire 1383 | 22 16 36 88 13 39 20 . 20 13 16 69 14 5 28 8 33 24 24 19 14 114 21 32 33 77 33 5 62 . 9 51 114 5 163 143 Melee 403 | . . 3 31 1 21 . . . 1 . 3 . 2 . 1 1 1 . . . . . . . 13 . . 48 3 32 114 99 13 5 11 Ram 3 | . . 1 . . . . . . 1 . . . . . . . . . . . 1 . . . . . . . . . . . . . . Kick . | . . . . . . . . . . . . . . . . . . . . . . . . . . . . . . . . . . . . Crush 72 | 2 . . 14 5 7 . . . . . 2 . . . . . 7 3 . 7 4 . . . 4 . . . . . . . . 4 13 Escape Stasis 93 | . . . . . . . . 8 . 6 . . . 4 . 4 2 10 . . . 11 . 10 . 16 . . . . . . . 22 . Rewire 172 | . . . . . . . . . . . . . . . . . 3 145 . . . . . . . . . 24 . . . . . . . Trap . | . . . . . . . . . . . . . . . . . . . . . . . . . . . . . . . . . . . . Miscellaneous . | . . . . . . . . . . . . . . . . . . . . . . . . . . . . . . . . . . . . Route ------- -11/Scrapyard -10/Materials -10/Mines (discovered 2 exits: *Mat x2) -9/Materials (discovered 4 exits: *Mat x3 / *Min) -9/Mines (discovered 3 exits: *Mat x2 / *Exi) -9/Exiles -8/Mines -8/Materials -8/Garrison -8/Materials -8/Garrison (discovered 2 exits: *Fac x2) -7/Factory -7/Waste -7/Factory -7/Garrison -7/Factory -7/Garrison -6/Factory -6/Extension (discovered 2 exits: *Fac / *Cet) -6/Cetus -6/Archives (discovered 3 exits: *Fac / *Hub x2) -6/Hub_04(d) (discovered 5 exits: *Fac x4 / Gar) -6/Garrison (discovered 2 exits: *Fac x2) -5/Factory -5/Garrison (discovered 3 exits: *Fac x3) -4/Factory (discovered 4 exits: *Res / Upp x2 / Gar) -4/Garrison -3/Research (discovered 3 exits: *Arm / Tes x2) -3/Armory (discovered 3 exits: Res x2 / [*Lab]) -3/Lab -2/Research (discovered 2 exits: *Qua x2) -2/Quarantine (discovered 2 exits: *Acc / *Sec) -2/Section 7 -1/Access -1/Command (discovered 2 exits: [*Sur] / [*Ac0]) -1/Access_0 Near Former Tau Ceti IV History --------- Turn | Location | Event 2 | -11/Scrapyard | Met Revision 17 11 | -11/Scrapyard | Discovered new exit (range 15) 224 | -11/Scrapyard | Entered Materials 316 | -10/Materials | Build established: Mutant 577 | -10/Materials | Discovered new exit (range 14) 625 | -10/Materials | Entered Mines 692 | -10/Mines | Discovered new exit (range 9) 696 | -10/Mines | Met a Derelict bent on vengeance 739 | -10/Mines | Learned location of Zion (-7) 871 | -10/Mines | Learned Materials security intel 1025 | -10/Mines | Discovered new exit (range 10) 1172 | -10/Mines | A weapon hastily lodged in a ceiling crevice suddenly fell to the ground 1539 | -10/Mines | Entered Materials 1539 | -9/Materials | Evolved 2 slots: Utility x2 1747 | -9/Materials | Lost 3 parts (1p1u1w) 2484 | -9/Materials | Discovered new exit (range 16) 2730 | -9/Materials | Discovered new exit (range 12) 2836 | -9/Materials | Identified exit to Mines 3058 | -9/Materials | Discovered new exit (range 8) 3581 | -9/Materials | Central database locked down 3677 | -9/Materials | Discovered new exit (range 5) 3927 | -9/Materials | Entered Mines 3986 | -9/Mines | Central database locked down 4078 | -9/Mines | Learned Materials emergency access door positions 4097 | -9/Mines | Learned location of Storage (-7) 4333 | -9/Mines | Discovered new exit (range 12) 4622 | -9/Mines | Assembled infested the area 4627 | -9/Mines | Assisted by a Guerilla fighting off Assembled 5083 | -9/Mines | Discovered new exit (range 13) 5170 | -9/Mines | Deemed a non-threat by the Exiles lab entrance 5171 | -9/Mines | Discovered new exit (range 5) 5179 | -9/Mines | Entered Exiles 5224 | -9/Exiles | Met 8R-AWN 5253 | -9/Exiles | Met EX-HEX 5368 | -9/Exiles | Met EX-DEC 5616 | -9/Exiles | Met EX-BIN 5624 | -9/Exiles | Build established: Hauler-Mutant 5644 | -9/Exiles | Aligned with FarCom system 5646 | -9/Exiles | Given EX-Vault access code 5692 | -9/Exiles | Opened EX-Vault 5702 | -9/Exiles | Found Longsword +1 5707 | -9/Exiles | Found Modified TNC 5714 | -9/Exiles | Found AWS/Gauss 5751 | -9/Exiles | Warned to stay clear of 0b10 Research branches 6004 | -9/Exiles | Attacked by the Exiles 6128 | -9/Exiles | Core integrity fell below 50% 6144 | -9/Exiles | Destroyed 8R-AWN 6154 | -9/Exiles | Found Prototype Device 6154 | -9/Exiles | Identified AS-neutralizer No. 17b 6166 | -9/Exiles | Found Prototype Ballistic Gun 6166 | -9/Exiles | Identified 8R-AWN's Boregun 6170 | -9/Exiles | Found 8R-AWN's Boregun 6498 | -9/Exiles | Destroyed EX-DEC 6542 | -9/Exiles | Destroyed EX-BIN 6556 | -9/Exiles | Found Deploy-a-Sentry 6583 | -9/Exiles | Destroyed EX-HEX 6992 | -9/Exiles | Discovered new exit (range 14) 7055 | -9/Exiles | Stole four prototypes: AWS/Gauss, Modified TNC, Longsword +1, Deploy-a-Sentry 7055 | -9/Exiles | Entered Mines 7223 | -8/Mines | Destroyed 7 combat bots 7259 | -8/Mines | Discovered new exit (range 15) 7314 | -8/Mines | Entered Materials 7314 | -8/Materials | Evolved 2 slots: Utility x1, Weapon x1 7349 | -8/Materials | Identified exit to Garrison 7349 | -8/Materials | Entered Garrison 7357 | -8/Garrison | Installed Relay Interface Framework 7428 | -8/Garrison | Triggered checkpoint 7516 | -8/Garrison | Discovered new exit (range 15) 7534 | -8/Garrison | Entered Materials 7610 | -8/Materials | Build established: Hauler-Gunner 7803 | -8/Materials | Identified exit to Garrison 7803 | -8/Materials | Entered Garrison 7950 | -8/Garrison | Triggered checkpoint 8043 | -8/Garrison | Discovered new exit (range 12) 8145 | -8/Garrison | Build established: Hauler-Tank 8284 | -8/Garrison | Triggered checkpoint 8360 | -8/Garrison | Triggered checkpoint 8406 | -8/Garrison | Discovered new exit (range 14) 8456 | -8/Garrison | Expanded RIF knowledge: Coupler Efficiency 8473 | -8/Garrison | Entered Factory 8473 | -7/Factory | Evolved 2 slots: Propulsion x1, Utility x1 9825 | -7/Factory | Discovered new exit (range 12) 10073 | -7/Factory | First assault squad dispatched 10316 | -7/Factory | Build established: Hauler-Mutant 10569 | -7/Factory | Sucked down chute 10569 | -7/Factory | Entered Waste 10584 | -7/Waste | EMP discharged 10584 | -7/Waste | System corruption reached 10% 10598 | -7/Waste | Spotted C-40 Crusher 10641 | -7/Waste | Destroyed C-40 Crusher 10661 | -7/Waste | Spotted C-40 Crusher 10667 | -7/Waste | Destroyed C-40 Crusher 10671 | -7/Waste | Spotted C-40 Crusher 10675 | -7/Waste | Destroyed C-40 Crusher 10684 | -7/Waste | EMP discharged 10710 | -7/Waste | Spotted C-40 Crusher 10710 | -7/Waste | Spotted C-40 Crusher 10713 | -7/Waste | Destroyed C-40 Crusher 10734 | -7/Waste | Destroyed C-40 Crusher 10749 | -7/Waste | Found Damper Plating 10780 | -7/Waste | Discovered new exit (range 15) 10784 | -7/Waste | EMP discharged 10810 | -7/Waste | Entered Factory 10953 | -7/Factory | Identified exit to Garrison 10953 | -7/Factory | Entered Garrison 11038 | -7/Garrison | Triggered checkpoint 11223 | -7/Garrison | Discovered new exit (range 10) 11251 | -7/Garrison | Expanded RIF knowledge: Structural Interface 11271 | -7/Garrison | Entered Factory 11528 | -7/Factory | Identified exit to Garrison 11528 | -7/Factory | Entered Garrison 11574 | -7/Garrison | Triggered checkpoint 11628 | -7/Garrison | Garrison Relay disabled 11969 | -7/Garrison | Discovered new exit (range 15) 12073 | -7/Garrison | Expanded RIF knowledge: Autooverride 12081 | -7/Garrison | Entered Factory 12081 | -6/Factory | Evolved 2 slots: Propulsion x1, Utility x1 12178 | -6/Factory | Build established: Hauler-Gunner 12280 | -6/Factory | Found Prototype Processor 12485 | -6/Factory | Build established: Hauler-Tank 12592 | -6/Factory | Allied Derelicts emerged from ambush trap array 12629 | -6/Factory | Discovered new exit (range 6) 12637 | -6/Factory | Entered Extension 12637 | -6/Extension | Accompanied by 2 allies 13094 | -6/Extension | Spotted B-75 Beast 13108 | -6/Extension | Destroyed B-75 Beast 13112 | -6/Extension | Disrupted transfer network 13115 | -6/Extension | Spotted B-75 Beast 13118 | -6/Extension | Allies destroyed B-75 Beast 13235 | -6/Extension | Rescued a captive Derelict 13305 | -6/Extension | Rescued a captive Derelict 13373 | -6/Extension | Rescued a captive Derelict 13374 | -6/Extension | Rescued a captive Derelict 13729 | -6/Extension | Central database locked down 13730 | -6/Extension | Rescued A7 14015 | -6/Extension | Build established: Scavenger-Gunner 14255 | -6/Extension | Discovered new exit (range 11) 14257 | -6/Extension | Discovered new exit (range 7) 14297 | -6/Extension | Entered Cetus 14297 | -6/Cetus | Accompanied by 11 allies (A7) 14302 | -6/Cetus | Acquired a Cetus Manufacturing Module code from A7 14330 | -6/Cetus | Spotted Cetus Guard 14330 | -6/Cetus | Spotted Cetus Guard 14332 | -6/Cetus | Spotted Cetus Guard 14336 | -6/Cetus | Spotted Cetus Guard 14345 | -6/Cetus | Allies destroyed Cetus Guard 14355 | -6/Cetus | Destroyed Cetus Guard 14358 | -6/Cetus | Allies destroyed Cetus Guard 14360 | -6/Cetus | Allies destroyed Cetus Guard 14468 | -6/Cetus | Started Cetus Manufacturing Module 14493 | -6/Cetus | Manufactured an Enhanced Grunt 14518 | -6/Cetus | Manufactured an Enhanced Grunt 14543 | -6/Cetus | Manufactured an Enhanced Grunt 14565 | -6/Cetus | Central database locked down 14568 | -6/Cetus | Manufactured an Enhanced Grunt 14590 | -6/Cetus | Discovered new exit (range 16) 14593 | -6/Cetus | Manufactured an Enhanced Grunt 14648 | -6/Cetus | Destroyed A7 14656 | -6/Cetus | Extracted ID and sensor layout for unrecognized location from A7's data core 14722 | -6/Cetus | Entered Archives 14722 | -6/Archives | Accompanied by 7 allies 14796 | -6/Archives | Discovered new exit (range 16) 14823 | -6/Archives | Discovered new exit (range 15) 14875 | -6/Archives | Discovered new exit (range 15) 14968 | -6/Archives | Build established: Hauler-Gunner 15351 | -6/Archives | Entered Hub_04(d) 15351 | -6/Hub_04(d) | Accompanied by 2 allies 15541 | -6/Hub_04(d) | Discovered new exit (range 15) 15656 | -6/Hub_04(d) | Build established: Hauler-Tank 15837 | -6/Hub_04(d) | Identified Exp. Signal Interpreter 15918 | -6/Hub_04(d) | Network Hub disabled 15960 | -6/Hub_04(d) | Discovered new exit (range 3) 15969 | -6/Hub_04(d) | Spotted Lightning 15982 | -6/Hub_04(d) | Spotted Lightning 15984 | -6/Hub_04(d) | Spotted Lightning 15992 | -6/Hub_04(d) | Destroyed Lightning 16030 | -6/Hub_04(d) | Destroyed Lightning 16037 | -6/Hub_04(d) | Spotted Lightning 16037 | -6/Hub_04(d) | Spotted Lightning 16038 | -6/Hub_04(d) | Spotted Lightning 16042 | -6/Hub_04(d) | Destroyed Lightning 16060 | -6/Hub_04(d) | Destroyed Lightning 16098 | -6/Hub_04(d) | Destroyed Lightning 16101 | -6/Hub_04(d) | Destroyed Lightning 16111 | -6/Hub_04(d) | Found Prototype Processor 16118 | -6/Hub_04(d) | Found Prototype Energy Cannon 16132 | -6/Hub_04(d) | Found Prototype Device 16132 | -6/Hub_04(d) | Identified EM Dispersion Field 16139 | -6/Hub_04(d) | Found Prototype Processor 16139 | -6/Hub_04(d) | Identified Exp. Targeting Computer (x2) 16164 | -6/Hub_04(d) | Found Prototype Device 16164 | -6/Hub_04(d) | Identified Exp. Phase Shifter 16233 | -6/Hub_04(d) | Network Hub disabled 16256 | -6/Hub_04(d) | Discovered new exit (range 16) 16344 | -6/Hub_04(d) | Spotted Lightning 16344 | -6/Hub_04(d) | Spotted Lightning 16346 | -6/Hub_04(d) | Spotted Lightning 16352 | -6/Hub_04(d) | Destroyed Lightning 16373 | -6/Hub_04(d) | Destroyed Lightning 16395 | -6/Hub_04(d) | Destroyed Lightning 16401 | -6/Hub_04(d) | First assault squad dispatched 16427 | -6/Hub_04(d) | Found Exp. Targeting Computer 16429 | -6/Hub_04(d) | Found Exp. Phase Shifter 16439 | -6/Hub_04(d) | Found Prototype Energy Cannon 16499 | -6/Hub_04(d) | Network Hub disabled 16546 | -6/Hub_04(d) | Spotted Lightning 16546 | -6/Hub_04(d) | Spotted Lightning 16547 | -6/Hub_04(d) | Spotted Lightning 16581 | -6/Hub_04(d) | Garrison activated, responded to threat 16598 | -6/Hub_04(d) | Destroyed Lightning 16620 | -6/Hub_04(d) | Destroyed Lightning 16630 | -6/Hub_04(d) | Destroyed Lightning 16646 | -6/Hub_04(d) | Found Prototype Energy Cannon 16663 | -6/Hub_04(d) | Discovered new exit (range 16) 16664 | -6/Hub_04(d) | Destroyed 14 combat bots 16665 | -6/Hub_04(d) | Found Exp. Phase Shifter 16693 | -6/Hub_04(d) | Identified exit to Garrison 16693 | -6/Hub_04(d) | Entered Garrison 16755 | -6/Garrison | Identified EMDS (x2) 16838 | -6/Garrison | Triggered checkpoint 16899 | -6/Garrison | Destroyed 9 combat bots 16935 | -6/Garrison | Discovered new exit (range 12) 16936 | -6/Garrison | Build established: Hauler-Mutant 17024 | -6/Garrison | Triggered checkpoint 17081 | -6/Garrison | Discovered new exit (range 14) 17121 | -6/Garrison | Expanded RIF knowledge: Autoassimilate 17141 | -6/Garrison | Entered Factory 17141 | -5/Factory | Evolved 2 slots: Utility x2 17344 | -5/Factory | Repaired Broken Centrium Heavy Treads 17360 | -5/Factory | Repaired Hcp. Storage Unit 17375 | -5/Factory | Repaired Hcp. Storage Unit 17441 | -5/Factory | Build established: Scavenger-Mutant 17441 | -5/Factory | First assault squad dispatched 17476 | -5/Factory | Repaired Broken EM Dispersion Field 17581 | -5/Factory | Destroyed 8 combat bots 17776 | -5/Factory | Identified exit to Garrison 17776 | -5/Factory | Entered Garrison 17852 | -5/Garrison | Triggered checkpoint 17897 | -5/Garrison | Triggered checkpoint 17908 | -5/Garrison | Triggered checkpoint 17942 | -5/Garrison | Destroyed 9 combat bots 17948 | -5/Garrison | Lost 3 parts (1n2w) 17965 | -5/Garrison | Build established: Hauler-Mutant 17979 | -5/Garrison | Discovered new exit (range 12) 18125 | -5/Garrison | Discovered new exit (range 10) 18314 | -5/Garrison | Discovered new exit (range 8) 18337 | -5/Garrison | Expanded RIF knowledge: Program Shield 18348 | -5/Garrison | Entered Factory 18348 | -4/Factory | Evolved 2 slots: Utility x2 18645 | -4/Factory | Build established: Scavenger-Mutant 19141 | -4/Factory | Found Prototype Hackware 19358 | -4/Factory | Garrison activated, responded to threat 19413 | -4/Factory | Discovered new exit (range 7) 19534 | -4/Factory | Build established: Hauler-Mutant 19707 | -4/Factory | Identified Exp. Hacking Suite 19952 | -4/Factory | Identified exit to Upper Caves 20244 | -4/Factory | Identified exit to Garrison 20245 | -4/Factory | Entered Garrison 20245 | -4/Garrison | Accompanied by 1 ally 20251 | -4/Garrison | Expanded RIF knowledge: Alert ID Control 20282 | -4/Garrison | Triggered checkpoint 20318 | -4/Garrison | Garrison Relay disabled 20340 | -4/Garrison | Triggered checkpoint 20340 | -4/Garrison | Triggered checkpoint 20402 | -4/Garrison | Triggered checkpoint 20404 | -4/Garrison | Triggered checkpoint 20446 | -4/Garrison | Discovered new exit (range 9) 20500 | -4/Garrison | Entered Research 20500 | -3/Research | Evolved 2 slots: Utility x2 20544 | -3/Research | Identified exit to Armory 20544 | -3/Research | Identified exit to Testing 20624 | -3/Research | Entered Armory 20688 | -3/Armory | Repaired Broken Centrium Wheel 20793 | -3/Armory | Spotted B-86 Titan 20817 | -3/Armory | Destroyed B-86 Titan 20840 | -3/Armory | Found Gamma Bomb Array 20866 | -3/Armory | Fabricated Exp. Terrain Scan Processor? 20904 | -3/Armory | Identified exit to Research 21066 | -3/Armory | Fabricated Exp. Terrain Scanner (x1) 21187 | -3/Armory | Fabricated S-43 Plague? 21272 | -3/Armory | Found Prototype Hackware 21274 | -3/Armory | Found Prototype Device 21274 | -3/Armory | Identified Exp. Sensor Array 21282 | -3/Armory | Found Prototype Launcher 21282 | -3/Armory | Identified Adv. Micro-nuke Launcher 21463 | -3/Armory | System corruption reached 10% 21527 | -3/Armory | Discovered new exit (range 24) 21533 | -3/Armory | Identified Exp. System Shield 21569 | -3/Armory | Fabricated Imp. Weapon Cycler (x2) 21595 | -3/Armory | Fabricated Imp. Utility Shielding (x2) 21630 | -3/Armory | Fabricated Arm. Medium Treads (x2) 21665 | -3/Armory | Fabricated Arm. Medium Treads (x2) 22011 | -3/Armory | Central database locked down 22118 | -3/Armory | Entered Lab 22120 | -3/Lab | Discovered exit to Research (range 9) 22348 | -3/Lab | Build established: Bothacker-Mutant 23112 | -3/Lab | Hidden lab's door opened automatically 23112 | -3/Lab | Sensor layout match revealed 23113 | -3/Lab | Gained access to the hidden lab's interior 23151 | -3/Lab | Found Alien Artifact 23151 | -3/Lab | Identified Integrated Reactor 23151 | -3/Lab | Installed Integrated Reactor, increased core energy generation (+10) 23190 | -3/Lab | Found Alien Artifact 23222 | -3/Lab | Found Prototype Protection 23222 | -3/Lab | Identified Med. Regenerative Plating 23227 | -3/Lab | Found Prototype Energy Gun 23227 | -3/Lab | Identified Hyp. EM Gauss Rifle 23232 | -3/Lab | Found Hyp. EM Gauss Rifle 23246 | -3/Lab | Found Prototype Hackware 23289 | -3/Lab | Found Alien Artifact 23382 | -3/Lab | Found Prototype Special Weapon 23426 | -3/Lab | Found Alien Artifact 23457 | -3/Lab | Entered Research 23457 | -2/Research | Evolved 2 slots: Utility x1, Weapon x1 23657 | -2/Research | Discovered new exit (range 17) 23726 | -2/Research | Identified Transdimensional Reconstructor 23726 | -2/Research | Warped through subspace 23749 | -2/Research | Build established: Hauler-Assassin 23767 | -2/Research | Repaired Exp. Weapon Shielding 23802 | -2/Research | Repaired Exp. Weapon Shielding 23840 | -2/Research | Identified exit to Quarantine 23965 | -2/Research | Entered Quarantine 24023 | -2/Quarantine | Spotted Alpha 7 24062 | -2/Quarantine | Destroyed Alpha 7 24074 | -2/Quarantine | Central database locked down 24087 | -2/Quarantine | Found Alien Launcher 24188 | -2/Quarantine | Found Alien Artifact 24290 | -2/Quarantine | Cryocooling Duct disabled 24292 | -2/Quarantine | Cryocooling Duct disabled 24305 | -2/Quarantine | Ambient heat levels rising (+20) 24305 | -2/Quarantine | Non-combat units ordered to evacuate 24307 | -2/Quarantine | Ambient heat levels rising (+20) 24307 | -2/Quarantine | Combat units ordered to evacuate 24407 | -2/Quarantine | Quarantine Guard activated 24484 | -2/Quarantine | Discovered new exit (range 16) 24541 | -2/Quarantine | Identified Core Regenerator 24541 | -2/Quarantine | Identified Core Reset Matrix 24541 | -2/Quarantine | Identified Matter Drive 24541 | -2/Quarantine | Identified Sigix Terminator 24541 | -2/Quarantine | Identified Quantum Router 24569 | -2/Quarantine | Found Alien Artifact 24585 | -2/Quarantine | Found Alien Artifact 24588 | -2/Quarantine | Found Transdimensional Reconstructor 24591 | -2/Quarantine | Found Transdimensional Reconstructor 24598 | -2/Quarantine | Found Transdimensional Reconstructor 24666 | -2/Quarantine | Cryocooling Duct disabled 24666 | -2/Quarantine | Cryocooling Duct disabled 24681 | -2/Quarantine | Ambient heat levels rising (+40) 24735 | -2/Quarantine | Spotted Quarantine Guard 24739 | -2/Quarantine | Destroyed Quarantine Guard 24849 | -2/Quarantine | Found Alien Artifact 24888 | -2/Quarantine | Spotted Quarantine Guard 24898 | -2/Quarantine | Destroyed Quarantine Guard 24908 | -2/Quarantine | Spotted Quarantine Guard 24934 | -2/Quarantine | Destroyed Quarantine Guard 24981 | -2/Quarantine | Build established: Hauler-Mutant 25029 | -2/Quarantine | Found Alien Artifact 25064 | -2/Quarantine | Spotted Quarantine Guard 25073 | -2/Quarantine | Destroyed Quarantine Guard 25244 | -2/Quarantine | Found Alien Artifact 25305 | -2/Quarantine | Identified Phase Armor 25312 | -2/Quarantine | Identified Subatomic Replicator 25327 | -2/Quarantine | Spotted Quarantine Guard 25345 | -2/Quarantine | Destroyed Quarantine Guard 25399 | -2/Quarantine | Spotted Quarantine Guard 25401 | -2/Quarantine | Destroyed Quarantine Guard 25480 | -2/Quarantine | Spotted Quarantine Guard 25487 | -2/Quarantine | Identified Phase Redirector 25487 | -2/Quarantine | Identified Dimensional Node Initializer 25487 | -2/Quarantine | Identified Hpw. Transdimensional Reconstructor 25487 | -2/Quarantine | Identified Gui. Remote Datajack 25502 | -2/Quarantine | Destroyed Quarantine Guard 25572 | -2/Quarantine | Spotted Quarantine Guard 25578 | -2/Quarantine | Destroyed Quarantine Guard 25798 | -2/Quarantine | Spotted Fortress 25845 | -2/Quarantine | Lost 3 parts (3p) 25990 | -2/Quarantine | Destroyed Fortress 25999 | -2/Quarantine | Lost 3 parts (1p2u) 26358 | -2/Quarantine | Repaired Centrium Heavy Treads 26440 | -2/Quarantine | Repaired Exp. Weapon Shielding 26479 | -2/Quarantine | Repaired Imp. Utility Shielding 26507 | -2/Quarantine | Repaired Hcp. Storage Unit 26542 | -2/Quarantine | Repaired Hcp. Storage Unit 26574 | -2/Quarantine | Repaired Hcp. Storage Unit 26691 | -2/Quarantine | Repaired Centrium Medium Armor Plating 26774 | -2/Quarantine | Repaired Biometal Heavy Treads 26979 | -2/Quarantine | Spotted Quarantine Guard 27056 | -2/Quarantine | Found Prototype Device 27056 | -2/Quarantine | Identified Exp. Force Field 27173 | -2/Quarantine | Discovered new exit (range 5) 27173 | -2/Quarantine | Spotted Quarantine Guard 27180 | -2/Quarantine | Entered Section 7 27189 | -2/Section 7 | Identified exit to Access 27589 | -2/Section 7 | Found Integrated Reactor 27610 | -2/Section 7 | Found Integrated Reactor 27610 | -2/Section 7 | Installed Integrated Reactor, increased core energy generation (+10) 27672 | -2/Section 7 | Found Alien Artifact 27888 | -2/Section 7 | Identified Integrity Redistributor 28006 | -2/Section 7 | Warped through subspace 28044 | -2/Section 7 | Initialized slip node 28088 | -2/Section 7 | Spotted S7 Guard 28106 | -2/Section 7 | Found Alien Artifact 28140 | -2/Section 7 | Identified Integrated Singularity Reactor 28140 | -2/Section 7 | Installed Integrated Singularity Reactor, increased core energy generation (+20) 28141 | -2/Section 7 | Installed Integrated Reactor, increased core energy generation (+10) 28157 | -2/Section 7 | Destroyed S7 Guard 28228 | -2/Section 7 | First assault squad dispatched 28253 | -2/Section 7 | Core integrity fell below 50% 28473 | -2/Section 7 | Spotted Executioner 28473 | -2/Section 7 | Spotted Executioner 28482 | -2/Section 7 | Warped through subspace 28494 | -2/Section 7 | Warped through subspace 28534 | -2/Section 7 | Found Transdimensional Reconstructor 28537 | -2/Section 7 | Found Transdimensional Reconstructor 28537 | -2/Section 7 | Warped through subspace 28605 | -2/Section 7 | System corruption reached 10% 28678 | -2/Section 7 | Found Alien Energy Gun 28682 | -2/Section 7 | Found Alien Energy Gun 28685 | -2/Section 7 | Found Alien Energy Gun 28829 | -2/Section 7 | Identified Sigix Quantum Sheargun (x3) 28920 | -2/Section 7 | Found Sigix Quantum Sheargun 28924 | -2/Section 7 | Found Sigix Quantum Sheargun 29018 | -2/Section 7 | Spotted B-99 Colossus 29075 | -2/Section 7 | Found Integrity Redistributor 29078 | -2/Section 7 | Found Integrity Redistributor 29136 | -2/Section 7 | Found Alien Artifact 29136 | -2/Section 7 | Identified LRC Energy Well 29136 | -2/Section 7 | Installed LRC Energy Well, increased energy storage capacity (+250) 29146 | -2/Section 7 | Found LRC Energy Well 29146 | -2/Section 7 | Installed LRC Energy Well, increased energy storage capacity (+250) 29149 | -2/Section 7 | Found Alien Artifact 29149 | -2/Section 7 | Identified LRC Boosters 29149 | -2/Section 7 | Installed LRC Boosters, increased mass support (+10) 29243 | -2/Section 7 | Found Alien Artifact 29243 | -2/Section 7 | Identified Integrated Dissipator 29243 | -2/Section 7 | Installed Integrated Dissipator, increased core heat dissipation (+20) 29691 | -2/Section 7 | Destroyed Executioner 29692 | -2/Section 7 | Core integrity fell below 20% 29695 | -2/Section 7 | Destroyed Executioner 29805 | -2/Section 7 | Entered Access 29805 | -1/Access | Evolved 2 slots: Power x1, Utility x1 29933 | -1/Access | Repaired Exp. Weapon Shielding 29951 | -1/Access | Repaired Hcp. Storage Unit 29973 | -1/Access | Used Integrity Redistributor, redistributed integrity from core (-55) 30211 | -1/Access | Discovered new exit (range 30) 30319 | -1/Access | Entered Command 30447 | -1/Command | Spotted M Guard 30447 | -1/Command | Spotted M Guard 30447 | -1/Command | Spotted Combat Programmer 30448 | -1/Command | Spotted Combat Programmer 30454 | -1/Command | Destroyed M Guard 30461 | -1/Command | Destroyed M Guard 30475 | -1/Command | Destroyed Combat Programmer 30495 | -1/Command | Destroyed Combat Programmer 30495 | -1/Command | All MAIN.C guards destroyed 30547 | -1/Command | Found Prototype Energy Cannon 30547 | -1/Command | Identified Cld. Nova Cannon 30552 | -1/Command | Found Prototype Device 30552 | -1/Command | Identified AEGIS Remote Shield 30556 | -1/Command | Found AEGIS Remote Shield 30561 | -1/Command | Found Prototype Reactor 30561 | -1/Command | Identified Zero-point Reactor 30571 | -1/Command | Found Prototype Protection 30571 | -1/Command | Identified Hvy. Regenerative Plating 30628 | -1/Command | Met MAIN.C 30632 | -1/Command | 0b10 Conduit disabled 30683 | -1/Command | Destroyed MAIN.C Shell 30685 | -1/Command | MAIN.C activated Command garrisons 30712 | -1/Command | Destroyed MAIN.C 30730 | -1/Command | Found Prototype Processor 30733 | -1/Command | Found Beam Splitter 30735 | -1/Command | Identified Exp. Target Analyzer 30793 | -1/Command | System corruption reached 10% 30796 | -1/Command | Spotted B-99 Colossus 30812 | -1/Command | Destroyed B-99 Colossus 30832 | -1/Command | Found Prototype Protection 30832 | -1/Command | Identified Exp. Powered Armor 30852 | -1/Command | Found Prototype Energy Cannon 30852 | -1/Command | Identified Hpw. Disruptor Cannon 30857 | -1/Command | Found Prototype Protection 30857 | -1/Command | Identified Centrium Heavy Armor Plating 30861 | -1/Command | Destroyed 13 combat bots 30904 | -1/Command | Found Centrium Heavy Armor Plating 30908 | -1/Command | Found Exp. Powered Armor 30952 | -1/Command | Found Zero-point Reactor 31117 | -1/Command | Found Prototype Device 31117 | -1/Command | Identified Exp. Transmission Jammer 31318 | -1/Command | Build established: Scavenger-Tank 32632 | -1/Command | Build established: Hauler-Mutant 33376 | -1/Command | Used Core Reset Matrix 33683 | -1/Command | Build established: Alien-Tank 33860 | -1/Command | Found Zero-point Reactor 33866 | -1/Command | Found Prototype Reactor 33866 | -1/Command | Identified Vortex Chain Reactor 33900 | -1/Command | Found Prototype Energy Cannon 33900 | -1/Command | Identified Imp. Potential Cannon 33962 | -1/Command | Found Prototype Device 33962 | -1/Command | Identified Femtoactuators 33979 | -1/Command | Found Centrium Heavy Armor Plating 33983 | -1/Command | Found Prototype Processor 33983 | -1/Command | Identified Exp. Targeting Computer 33989 | -1/Command | Found Prototype Processor 33989 | -1/Command | Identified Exp. Armor Integrity Analyzer 33998 | -1/Command | Used Integrity Redistributor, redistributed integrity from core (-83) 34011 | -1/Command | Used Core Regenerator, restored core integrity (+400) 34167 | -1/Command | Build established: Alien-Gunner 34257 | -1/Command | Found Exp. Targeting Computer 34387 | -1/Command | Spotted B-99 Colossus 34400 | -1/Command | Destroyed B-99 Colossus 34423 | -1/Command | Found Exp. Targeting Computer 34428 | -1/Command | Found Exp. Target Analyzer 34445 | -1/Command | Discovered new exit (range 8) 34463 | -1/Command | Found Prototype Processor 34465 | -1/Command | Identified Exp. Core Analyzer 34525 | -1/Command | Found Prototype Ballistic Gun 34527 | -1/Command | Identified Multirail 34628 | -1/Command | Found Unknown Device 34640 | -1/Command | Identified Quantum Capacitor 34646 | -1/Command | Warped through subspace to slip node 34646 | -1/Command | Discovered new exit (range 5) 34673 | -1/Command | Entered Access_0 34674 | -1/Access_0 | Sensed 4 artifacts in vicinity 34675 | -1/Access_0 | Met Architect 34677 | -1/Access_0 | Architect warped through subspace 34705 | -1/Access_0 | Destroyed A8 34733 | -1/Access_0 | Architect warped through subspace 34783 | -1/Access_0 | Architect warped through subspace 34784 | -1/Access_0 | Subspace Access Node disabled 34809 | -1/Access_0 | Found Integrated Dissipator 34810 | -1/Access_0 | Installed Integrated Dissipator, increased core heat dissipation (+20) 34813 | -1/Access_0 | Used Subatomic Replicator to replicate Integrity Redistributor 34834 | -1/Access_0 | Architect warped through subspace 34835 | -1/Access_0 | Used Integrity Redistributor, redistributed integrity from core (-71) 34875 | -1/Access_0 | Subspace Access Node disabled 34877 | -1/Access_0 | Architect warped through subspace 34921 | -1/Access_0 | Build established: Alien-Mutant 34952 | -1/Access_0 | Architect warped through subspace 34971 | -1/Access_0 | A6 warped into view 34975 | -1/Access_0 | Destroyed A6 34991 | -1/Access_0 | Architect warped through subspace 35030 | -1/Access_0 | Architect warped through subspace 35067 | -1/Access_0 | Architect warped through subspace 35100 | -1/Access_0 | Architect warped through subspace 35124 | -1/Access_0 | Architect warped through subspace 35147 | -1/Access_0 | Architect warped through subspace 35170 | -1/Access_0 | Architect warped through subspace 35189 | -1/Access_0 | Architect warped through subspace 35193 | -1/Access_0 | Subspace Access Node disabled 35205 | -1/Access_0 | Architect warped through subspace 35220 | -1/Access_0 | Architect warped through subspace 35233 | -1/Access_0 | Architect warped through subspace 35244 | -1/Access_0 | Architect warped through subspace 35252 | -1/Access_0 | Used Integrity Redistributor, redistributed integrity from core (-118) 35256 | -1/Access_0 | Architect warped through subspace 35277 | -1/Access_0 | Found Integrity Redistributor 35282 | -1/Access_0 | Architect warped through subspace 35291 | -1/Access_0 | Architect warped through subspace 35302 | -1/Access_0 | Architect warped through subspace 35311 | -1/Access_0 | Architect warped through subspace 35322 | -1/Access_0 | Fired Sigix Terminator 35322 | -1/Access_0 | Architect warped through subspace 35322 | -1/Access_0 | Subspace Access Node disabled 35340 | -1/Access_0 | A5 warped into view 35363 | -1/Access_0 | Destroyed 7 combat bots 35363 | -1/Access_0 | Destroyed A5 35375 | -1/Access_0 | Used Integrity Redistributor, redistributed integrity from core (-170) 35376 | -1/Access_0 | Core integrity fell below 50% 35441 | -1/Access_0 | Found Prototype Protection 35441 | -1/Access_0 | Identified Centrium Linked Plating 35486 | -1/Access_0 | Found Centrium Linked Plating 35524 | -1/Access_0 | Emitted hypermatrix ping 35529 | -1/Access_0 | Assembled emerged from beneath the floor 35536 | -1/Access_0 | Allies destroyed Architect 35537 | -1/Access_0 | Architect triggered a singularity event 35537 | -1/Access_0 | Warped through subspace to slip node 35537 | -1/Access_0 | Discovered new exit (range 8) 35538 | -1/Access_0 | Released all parts (19) 35547 | *** | Escaped singularity! Last Messages --------------- 35538_ Longsword +1 crushed and broken. 35538_ Released Exp. Powered Armor. 35538_ Exp. Powered Armor crushed and broken. 35538_ Released Exp. Powered Armor. 35538_ Exp. Powered Armor crushed and broken. 35538_ Released Beam Splitter. 35538_ Beam Splitter crushed and broken. 35538_ Released Centrium Linked Plating. 35538_ Centrium Linked Plating crushed and broken. 35538_ Released Imp. Potential Cannon. 35538_ Imp. Potential Cannon crushed and broken. 35539_ A0_COM: 9. 35540_ A0_COM: 8. 35541_ A0_COM: 7. 35542_ A0_COM: 6. 35543_ A0_COM: 5. 35544_ A0_COM: 4. 35545_ A0_COM: 3. 35546_ A0_COM: 2. 35547_ A0_COM: 1. Map ----- +----------------------------------------------------+ | | | | | | | | | | | | | | | | | | | | | | | | | | | | | | | | | ?????????????????????????????????????????????????? | | ?????????????????????????????????????????????????? | | ?????????????????????????????????????????????????? | | ?????????????????????????????????????????????????? | | ?????????????????????????????????????????????????? | | ?????????????????????????????????????????????????? | | ????????????????????????###??????????????????????? | | ???????????????????????## ##?????????????????????? | | ???????????????????????# #?????????????????????? | | ???????????????????????# @ #?????????????????????? | | ??????????????????????## #?????????????????????? | | ??????????????????????# ![ #?????????????????????? | | ??????????????????????#!![##?????????????????????? | | ??????????????????????##![!#?????????????????????? | | ??????????????????????#![&!#?????????????????????? | | ??????????????????????#!=]##?????????????????????? | | ??????????????????????#!!=!#?????????????????????? | | ??????????????????????#!]!##?????????????????????? | | ??????????????????????##!!#??????????????????????? | | ???????????????????????####??????????????????????? | | ?????????????????????????????????????????????????? | | ?????????????????????????????????????????????????? | | ?????????????????????????????????????????????????? | | ?????????????????????????????????????????????????? | | ?????????????????????????????????????????????????? | | ?????????????????????????????????????????????????? | | ?????????????????????????????????????????????????? | | ?????????????????????????????????????????????????? | | ??????????????#??#??#???#????????????????????????? | | ?????????????????#?##???#?##?????????????????????? | | ????????#??##????#????#???###????????????????????? | | ????????#?????#??##?#?#?#??###??#????????????????? | | ???????#?#????##???##????#??????##???????????????? | | ??#?????????##?###??#?#?#???#??##?#??#???????????? | +----------------------------------------------------+ Best States ------------- Heat Dissipation 92 Coolant Potential 120 Energy Generation 111 Energy Capacity 3000 Matter Stores 627 Matter Capacity 800 Sight Range 23 Robot Scan Range 30 Terrain Scan Range 30 Terrain Scan Density 1010 Jamming Range 16 Additional Mass Support 16 Armor Coverage 3800 Resistance: TH 75 Resistance: EM 90 Core Shielding 20 Utility Shielding 66 Weapon Shielding 90 Weapon Cycling 20 Phase Shifting 20 Evasion (%) 60 Targeting Accuracy 36 Target Analysis 12 Core Analysis 15 Armor Integrity Analysis 90 Recoil Reduction 4 Offensive Hacking 42 Defensive Hacking 30 Item Schematics ----------------- None Robot Schematics ------------------ None Fabricated ------------ Exp. Terrain Scan Processor | x1 | -3/Armory Exp. Terrain Scanner | x1 | -3/Armory S-43 Plague | x4 | -3/Armory | Preloaded Imp. Weapon Cycler | x2 | -3/Armory Imp. Utility Shielding | x2 | -3/Armory Arm. Medium Treads | x2 | -3/Armory Arm. Medium Treads | x2 | -3/Armory Alien Tech Used ----------------- Integrated Reactor Transdimensional Reconstructor Subatomic Replicator Dimensional Node Initializer Integrated Singularity Reactor Sigix Quantum Sheargun LRC Energy Well LRC Boosters Integrated Dissipator Integrity Redistributor Matter Drive Core Reset Matrix Core Regenerator High-powered Transdimensional Reconstructor Sigix Terminator Achievements -------------- None Challenges ------------ None Game ------ Seed OpticalHugeMinigun Manual? 0 Play Time 05:25:12 Cumulative 1702.7 hours Start 2020.10.18 @ 11:33:31 End 2020.10.18 @ 19:51:06 Sessions 5 Manual Loads 0 Difficulty Rogue Special Mode None Game No. 2492 Rogue 2485 Adventurer 0 Explorer 7 Win Type 6 Total 163 Types 41/23/62/3/3/5/23/2/1 Lore% 99 Gallery% 99 Achievement% 100 Wizard Run 0 Options --------- ASCII 0 Keyboard 1 Movement Numpad Keybinds 1 Fullscreen 1 Font 18/SmallcapsGlow Map View 76x50 Tactical HUD 1 Map Filters NONE Filters NONE Steam 1 RUN: 046967a5-946e-45de-832a-099f1892921a